Body Name,Body,Service Division Label,Service Division Code,Organisational Unit,Expenditure Category,Expenditure Code,CIPFA detailed expediture type,CIPFA detailed expediture code,Narrative,Date,Transaction number,Net Amount,Capital and Revenue,Supplier Name,Supplier ID
Chorley Borough Council,http://statistics.data.gov.uk/id/local-authority/30UE,Central Support Services,1009,CUST - Customer & Digital,Telephones - Other,40085,Communication and Computing,5028,Adept Telecom - December 23,14/02/2024,189591,2034.92,Revenue,Adept Telecom PLC,77452
Chorley Borough Council,http://statistics.data.gov.uk/id/local-authority/30UE,Central Support Services,1009,GOVN - Policy & Governance,Car Leasing Payment,14100,Direct Employee Expenses,5001,Feb-24,28/02/2024,191092,4909.5,Revenue,ALD Automotive Ltd,84840
Chorley Borough Council,http://statistics.data.gov.uk/id/local-authority/30UE,Central Support Services,1009,CUST - Customer & Digital,Bank Charges,40151,Miscellaneous Expenses,5034,Jan-24,29/02/2024,191256,626.16,Revenue,Allpay Net Ltd,17242
Chorley Borough Council,http://statistics.data.gov.uk/id/local-authority/30UE,Business Support,1095,GROW - Commercial Services,General Repairs - Reactive,20004,Repairs Maintenance & Alts,5005,Reactive Security Systems Repair Works @ Primrose Gardens,07/02/2024,190464,530.41,Revenue,Amalgamated Ltd,78289
Chorley Borough Council,http://statistics.data.gov.uk/id/local-authority/30UE,Central Support Services,1009,CUST - Customer & Digital,Computer Software-Additional,40102,Communication and Computing,5028,"Amazon AWS web services - 718576685325 Cloud charges, , March 2024",21/02/2024,190897,6766.44,Revenue,Amazon Web Services EMEA SARL,80604
Chorley Borough Council,http://statistics.data.gov.uk/id/local-authority/30UE,Central Support Services,1009,CUST - Customer & Digital,Computer Software-Additional,40102,Communication and Computing,5028,"Amazon AWS web services - 718576685325 Cloud charges, , February 2024",28/02/2024,191396,6410.46,Revenue,Amazon Web Services EMEA SARL,80604
Chorley Borough Council,http://statistics.data.gov.uk/id/local-authority/30UE,Central Support Services,1009,EARL - Communities,Impounded Dogs Costs,40207,Miscellaneous Expenses,5034,Annual Stray Dog Provisions,07/02/2024,189334,1100.8,Revenue,Animal Wardens Ltd,80965
Chorley Borough Council,http://statistics.data.gov.uk/id/local-authority/30UE,Central Support Services,1009,EARL - Communities,Impounded Dogs Costs,40207,Miscellaneous Expenses,5034,Annual Stray Dog Provisions,14/02/2024,189597,515.2,Revenue,Animal Wardens Ltd,80965
Chorley Borough Council,http://statistics.data.gov.uk/id/local-authority/30UE,Central Support Services,1009,EARL - Communities,Impounded Dogs Costs,40207,Miscellaneous Expenses,5034,Annual Stray Dog Provisions,14/02/2024,191015,515.2,Revenue,Animal Wardens Ltd,80965
Chorley Borough Council,http://statistics.data.gov.uk/id/local-authority/30UE,Homelessness,1075,EARL - Communities,Grants - Tenant Participation,40142,Grants and Subscriptions,5031,0,21/02/2024,191206,500,Revenue,Ann Strange,87237
Chorley Borough Council,http://statistics.data.gov.uk/id/local-authority/30UE,Homelessness,1075,EARL - Communities,Grants - Tenant Participation,40142,Grants and Subscriptions,5031,0,14/02/2024,191191,500,Revenue,Anne Barnish,85651
Chorley Borough Council,http://statistics.data.gov.uk/id/local-authority/30UE,Central Support Services,1009,GOVN - Policy & Governance,Employee Related Insurance,18003,Indirect Employee Expenses,5002,"CBC Combined Liaility Premium 2024, 124,334.88 + IPT@ 14,920.19 = 139,255.07",28/02/2024,190824,139255.07,Revenue,Arthur J. Gallagher,83531
Chorley Borough Council,http://statistics.data.gov.uk/id/local-authority/30UE,Central Support Services,1009,GOVN - Policy & Governance,Premises Related Insurances,20068,Premises Related Insurance,5014,"CBC Property Insurance 2024, , 139,941.60 + IPT @ 16,792.99 = 156,734.59",28/02/2024,190825,156734.59,Revenue,Arthur J. Gallagher,83531
Chorley Borough Council,http://statistics.data.gov.uk/id/local-authority/30UE,Central Support Services,1009,GOVN - Policy & Governance,Vehicles & Plant Insurance,30038,Transport Insurance,5020,"CBC Engineering Insurance 2024, 2634.66 + IPT @ 316.16 = 2950.82",14/02/2024,190828,2950.82,Revenue,Arthur J. Gallagher,83531
Chorley Borough Council,http://statistics.data.gov.uk/id/local-authority/30UE,Central Support Services,1009,GOVN - Policy & Governance,Vehicles & Plant Insurance,30038,Transport Insurance,5020,"CBC Engineering Inspection Policy 2024, 8,737.21 + VAT@ 1747.44 = 10,484.65",14/02/2024,190829,8737.21,Revenue,Arthur J. Gallagher,83531
Chorley Borough Council,http://statistics.data.gov.uk/id/local-authority/30UE,Central Support Services,1009,GOVN - Policy & Governance,Miscellaneous Insurances,40155,Miscellaneous Expenses,5034,"CBC Terrorism Insurance 2024, 19,186.39 + IPT@ 2,302.37 = 21,488.76",14/02/2024,190830,21488.76,Revenue,Arthur J. Gallagher,83531
Chorley Borough Council,http://statistics.data.gov.uk/id/local-authority/30UE,Central Support Services,1009,GOVN - Policy & Governance,Miscellaneous Insurances,40155,Miscellaneous Expenses,5034,"CBC Motro Lease insurance 2024, 14,646.55 + IPT@1757.59 = 16,404.14",14/02/2024,190831,16404.14,Revenue,Arthur J. Gallagher,83531
Chorley Borough Council,http://statistics.data.gov.uk/id/local-authority/30UE,Central Support Services,1009,GOVN - Policy & Governance,Miscellaneous Insurances,40155,Miscellaneous Expenses,5034,"CBC Fine Arts Insurance Policy 2024, 7760.31 + � IPT@931.24 = 8691.55",14/02/2024,190832,8691.55,Revenue,Arthur J. Gallagher,83531
Chorley Borough Council,http://statistics.data.gov.uk/id/local-authority/30UE,Central Support Services,1009,GOVN - Policy & Governance,Miscellaneous Insurances,40155,Miscellaneous Expenses,5034,"CBC Personal Accident Insuarance & Travel 2024, 520.00 + IPT @ 62.40 = 582.40",14/02/2024,190833,582.4,Revenue,Arthur J. Gallagher,83531
Chorley Borough Council,http://statistics.data.gov.uk/id/local-authority/30UE,Central Support Services,1009,GOVN - Policy & Governance,Vehicles & Plant Insurance,30038,Transport Insurance,5020,"CBC Motor Fleet Insurance 2024, 37,100.00 + IPT@ 4,452.00 = 41,552.00",14/02/2024,190834,41552,Revenue,Arthur J. Gallagher,83531
Chorley Borough Council,http://statistics.data.gov.uk/id/local-authority/30UE,Central Support Services,1009,GOVN - Policy & Governance,Miscellaneous Insurances,40155,Miscellaneous Expenses,5034,"CBC Consultancy Fee for 2024 insurance Renewal, 630",14/02/2024,191022,630,Revenue,Arthur J. Gallagher,83531
Chorley Borough Council,http://statistics.data.gov.uk/id/local-authority/30UE,Public Transport,1067,CUST - Customer & Digital,Bus Shelters -Maintenance,20062,Grounds Maintenance Costs,5013,"Huyton Terrace repairs, , Site attendance 145.00, Remove beading , Refit panels, Refit beading, Labour 540.00",14/02/2024,191051,685,Revenue,Autocross Euroshel Ltd,77509
Chorley Borough Council,http://statistics.data.gov.uk/id/local-authority/30UE,Service Management & Support,1009,CUST - Customer & Digital,Vehicles and Plant Maintenance,30045,Direct Transport Costs,5016,As per Aut5040,28/02/2024,191446,1554.3,Revenue,Autofit,78140
Chorley Borough Council,http://statistics.data.gov.uk/id/local-authority/30UE,Other Short Term Creditors,0,GOVN - Policy & Governance,Amount Paid,10,Balance Sheet,Balance,AVC Wise Scheme - annual purchase order (monthly spend approximately 8872,14/02/2024,190696,572.33,Revenue,AVCWise,89242
Chorley Borough Council,http://statistics.data.gov.uk/id/local-authority/30UE,Capital,Capital,PLAN - Planning & Development,Main Contractor,3007,Capital Expenditure,Capital,Trees and hedgerow whips as per excel sheet for the Nov 23 Tree giveaway. Direct delivery to Strawberry Fields Hub Saturday 25 No,07/02/2024,188770,6317,Capital,Bannister Hall Ltd,22515
Chorley Borough Council,http://statistics.data.gov.uk/id/local-authority/30UE,Capital,Capital,PLAN - Planning & Development,Main Contractor,3007,Capital Expenditure,Capital,February 2023 Tree Giveaway order for delivery to Strawberry Fields. native feathered whips and hedging,07/02/2024,190816,7758.4,Capital,Bannister Hall Ltd,22515
Chorley Borough Council,http://statistics.data.gov.uk/id/local-authority/30UE,Service Management & Support,1009,CUST - Customer & Digital,Grounds Maintenance Contractor,20043,Grounds Maintenance Costs,5013,Estimate 1404,14/02/2024,190704,590,Revenue,Beardwood Tree Services,77437
Chorley Borough Council,http://statistics.data.gov.uk/id/local-authority/30UE,Service Management & Support,1009,CUST - Customer & Digital,Grounds Maintenance Contractor,20043,Grounds Maintenance Costs,5013,Estimate 1410,14/02/2024,190704,660,Revenue,Beardwood Tree Services,77437
Chorley Borough Council,http://statistics.data.gov.uk/id/local-authority/30UE,Service Management & Support,1009,CUST - Customer & Digital,Grounds Maintenance Contractor,20043,Grounds Maintenance Costs,5013,Estimate 1408,14/02/2024,190704,690,Revenue,Beardwood Tree Services,77437
Chorley Borough Council,http://statistics.data.gov.uk/id/local-authority/30UE,Service Management & Support,1009,CUST - Customer & Digital,Grounds Maintenance Contractor,20043,Grounds Maintenance Costs,5013,Estimate 1422,07/02/2024,190747,760,Revenue,Beardwood Tree Services,77437
Chorley Borough Council,http://statistics.data.gov.uk/id/local-authority/30UE,Service Management & Support,1009,CUST - Customer & Digital,Grounds Maintenance Contractor,20043,Grounds Maintenance Costs,5013,Estimate 1411,07/02/2024,190747,580,Revenue,Beardwood Tree Services,77437
Chorley Borough Council,http://statistics.data.gov.uk/id/local-authority/30UE,Service Management & Support,1009,CUST - Customer & Digital,Grounds Maintenance Contractor,20043,Grounds Maintenance Costs,5013,Estimate 1413,07/02/2024,190747,770,Revenue,Beardwood Tree Services,77437
Chorley Borough Council,http://statistics.data.gov.uk/id/local-authority/30UE,Service Management & Support,1009,CUST - Customer & Digital,Grounds Maintenance Contractor,20043,Grounds Maintenance Costs,5013,Estimate 1420,07/02/2024,190747,680,Revenue,Beardwood Tree Services,77437
Chorley Borough Council,http://statistics.data.gov.uk/id/local-authority/30UE,Homelessness,1075,EARL - Communities,Grants - Tenant Participation,40142,Grants and Subscriptions,5031,0,14/02/2024,191189,500,Revenue,Beverley Elliott,86921
Chorley Borough Council,http://statistics.data.gov.uk/id/local-authority/30UE,Development Control,1091,PLAN - Planning & Development,Professional Fees,40063,Services,5027,"Growth Lancashire, Provision of heritage advice in respect of planning applications, 1 April 2023  31 March 2024",14/02/2024,190857,5356.89,Revenue,Blackburn with Darwen Borough Council,21000
Chorley Borough Council,http://statistics.data.gov.uk/id/local-authority/30UE,Capital,Capital,PLAN - Planning & Development,Main Contractor,3007,Capital Expenditure,Capital,Blue sky Tree Mapping - Year 3 annual licence for continued use of NTM data already in use at Chorley Borough Council. Year 3 lic,07/02/2024,190682,823,Capital,Bluesky International Ltd,84482
Chorley Borough Council,http://statistics.data.gov.uk/id/local-authority/30UE,Economic Development,1096,GROW - Commercial Services,Electricity,20013,Energy Costs,5006,9 January 2024 to 8 February 2024,28/02/2024,191598,4320.28,Revenue,British Gas Business,22242
Chorley Borough Council,http://statistics.data.gov.uk/id/local-authority/30UE,Central Support Services,1009,CUST - Customer & Digital,Telephones - Rentals,40083,Communication and Computing,5028,Regular charges 1 Nov 23 - 31 Mar 2024,07/02/2024,190875,9877.57,Revenue,British Telecommunications Plc,17131
Chorley Borough Council,http://statistics.data.gov.uk/id/local-authority/30UE,Capital,Capital,PLAN - Planning & Development,Main Contractor,3007,Capital Expenditure,Capital,,21/02/2024,191093,5742.93,Capital,BRK Farming and Holding Nursery Ltd,89686
Chorley Borough Council,http://statistics.data.gov.uk/id/local-authority/30UE,Central Support Services,1009,GROW - Commercial Services,General Repairs - Reactive,20004,Repairs Maintenance & Alts,5005,Cotswold House Reactive General Building Repair Works,07/02/2024,190538,895.93,Revenue,Bryan Lee Building Contractors Ltd,78160
Chorley Borough Council,http://statistics.data.gov.uk/id/local-authority/30UE,Central Support Services,1009,GROW - Commercial Services,General Repairs - Reactive,20004,Repairs Maintenance & Alts,5005,CBC Market Reactive General Building Repair Works,21/02/2024,190693,904.56,Revenue,Bryan Lee Building Contractors Ltd,78160
Chorley Borough Council,http://statistics.data.gov.uk/id/local-authority/30UE,Capital,Capital,GROW - Commercial Services,Other Contractor,3012,Capital Expenditure,Capital,"Strawberry Fields, Digital Office Park, Valuation No. 5 - as per breakdown in email sent 7th June 2023.",07/02/2024,190713,6428.36,Capital,Bryan Lee Building Contractors Ltd,78160
Chorley Borough Council,http://statistics.data.gov.uk/id/local-authority/30UE,Central Support Services,1009,GROW - Commercial Services,General Repairs - Reactive,20004,Repairs Maintenance & Alts,5005,CBC Housing Reactive General Building Repair Works,07/02/2024,190732,2880.91,Revenue,Bryan Lee Building Contractors Ltd,78160
Chorley Borough Council,http://statistics.data.gov.uk/id/local-authority/30UE,Community Development,1097,GROW - Commercial Services,General Repairs - Reactive,20004,Repairs Maintenance & Alts,5005,CAB - 35/39 Market Street Reactive General Building Repair Works,14/02/2024,190737,779,Revenue,Bryan Lee Building Contractors Ltd,78160
Chorley Borough Council,http://statistics.data.gov.uk/id/local-authority/30UE,Central Support Services,1009,CUST - Customer & Digital,Telephones - Rentals,40083,Communication and Computing,5028,vision - Analogue Legacy Rental. - Yearly Charge. Period : 31 - JAN - 24 to 30 - J AN - 25,07/02/2024,190653,2126.88,Revenue,BT Redcare,21115
Chorley Borough Council,http://statistics.data.gov.uk/id/local-authority/30UE,Central Support Services,1009,CUST - Customer & Digital,Telephones - Rentals,40083,Communication and Computing,5028,31 - JAN - 24 to 30 - JAN - 25 annual charge,14/02/2024,191084,3302.03,Revenue,BT Redcare,21115
Chorley Borough Council,http://statistics.data.gov.uk/id/local-authority/30UE,Central Support Services,1009,CUST - Customer & Digital,Telephones - Rentals,40083,Communication and Computing,5028,31 Jan 2022 to 30 Jan 2023,28/02/2024,191671,3302.03,Revenue,BT Redcare,21115
Chorley Borough Council,http://statistics.data.gov.uk/id/local-authority/30UE,Central Support Services,1009,CUST - Customer & Digital,Telephones - Rentals,40083,Communication and Computing,5028,31 Jan 2022 to 30 Jan 2023,28/02/2024,191672,2126.88,Revenue,BT Redcare,21115
Chorley Borough Council,http://statistics.data.gov.uk/id/local-authority/30UE,Business Support,1095,GROW - Commercial Services,Grants To Other Organisations,40127,Grants and Subscriptions,5031,Chorley BIG Grant round 2,21/02/2024,191298,886.2,Revenue,Buckshaw Bunnies Childcare Ltd (Gelston Manor Day,66660
Chorley Borough Council,http://statistics.data.gov.uk/id/local-authority/30UE,Culture & Heritage,1036,GROW - Commercial Services,Fixtures & Fittings - Purchase,20027,Fixtures and Fittings,5010,Tudor render panel investigation to the East Wing Extension (West Elevation) Astley Hall. The scope and cost of the works is deta,07/02/2024,189764,5277.04,Revenue,Bullen Conservation Ltd,68424
Chorley Borough Council,http://statistics.data.gov.uk/id/local-authority/30UE,Capital,Capital,GROW - Commercial Services,Main Contractor,3007,Capital Expenditure,Capital,Astley Hall Renovation Works,21/02/2024,191023,12106.65,Capital,Bullen Conservation Ltd,68424
Chorley Borough Council,http://statistics.data.gov.uk/id/local-authority/30UE,Service Management & Support,1009,CUST - Customer & Digital,External Contractor,40198,Miscellaneous Expenses,5034,"Bengal St Depot � Empty yard catch pits each month  450 x 12 = 5400.00, Bengal St Depot � Empty yard interceptor every 3 month",14/02/2024,190885,750,Revenue,C J Lyon,16579
Chorley Borough Council,http://statistics.data.gov.uk/id/local-authority/30UE,Business Support,1095,GROW - Commercial Services,Grants To Other Organisations,40127,Grants and Subscriptions,5031,part payment (30%) grant for community payback part of grant,28/02/2024,191435,2100,Revenue,CAKE by Hannah Jones Limited,89649
Chorley Borough Council,http://statistics.data.gov.uk/id/local-authority/30UE,Central Support Services,1009,CUST - Customer & Digital,Misc Expenses,40200,Miscellaneous Expenses,5034,,07/02/2024,190576,748.2,Revenue,Canon (UK) Ltd,17492
Chorley Borough Council,http://statistics.data.gov.uk/id/local-authority/30UE,Capital,Capital,GOVN - Policy & Governance,Main Contractor,3007,Capital Expenditure,Capital,"Provision of the Design, Install, Provision and Support for the Relocation and Upgrade of CCTV, Capital Costs As specified in the",14/02/2024,190794,4994.88,Capital,CCTV Services Limited,71330
Chorley Borough Council,http://statistics.data.gov.uk/id/local-authority/30UE,Business Support,1095,GROW - Commercial Services,Salting & Gritting,20059,Grounds Maintenance Costs,5013,"seasonal winter gritting for Strawberry Meadows Business Park of all public walkways and site road. , 74.45 plus VAT per grit, x",07/02/2024,190791,1021.96,Revenue,Chameleon Facilities Limited,78464
Chorley Borough Council,http://statistics.data.gov.uk/id/local-authority/30UE,Business Support,1095,GROW - Commercial Services,Salting & Gritting,20059,Grounds Maintenance Costs,5013,"Winter maintenance service for Berry Way. , January 2024",07/02/2024,190796,714.72,Revenue,Chameleon Facilities Limited,78464
Chorley Borough Council,http://statistics.data.gov.uk/id/local-authority/30UE,Homelessness,1075,GROW - Commercial Services,Salting & Gritting,20059,Grounds Maintenance Costs,5013,"Seasonal Winter Gritting service for Cotswold House suprted Living Accommodation, public walkways and car park as agreed , Quote ",07/02/2024,190798,993.84,Revenue,Chameleon Facilities Limited,78464
Chorley Borough Council,http://statistics.data.gov.uk/id/local-authority/30UE,Business Support,1095,GROW - Commercial Services,Salting & Gritting,20059,Grounds Maintenance Costs,5013,"Seasonal Winter Gritting service for Strawberry Fields Digital Office Park, public walkways and car parks as agreed , Quote per v",07/02/2024,190802,1776.12,Revenue,Chameleon Facilities Limited,78464
Chorley Borough Council,http://statistics.data.gov.uk/id/local-authority/30UE,Business Support,1095,GROW - Commercial Services,Salting & Gritting,20059,Grounds Maintenance Costs,5013,"Seasonal Winter Gritting service for Tatton Gardens Retirement Village, public walkways and car park as agreed , Quote per visit ",07/02/2024,190819,1481.64,Revenue,Chameleon Facilities Limited,78464
Chorley Borough Council,http://statistics.data.gov.uk/id/local-authority/30UE,Central Support Services,1009,GROW - Commercial Services,General Repairs - Reactive,20004,Repairs Maintenance & Alts,5005,"Gritting at Whittle Surgery, Chorley.",14/02/2024,190837,861,Revenue,Chameleon Facilities Limited,78464
Chorley Borough Council,http://statistics.data.gov.uk/id/local-authority/30UE,Business Support,1095,GROW - Commercial Services,Salting & Gritting,20059,Grounds Maintenance Costs,5013,"Seasonal Winter Gritting Service for Primrose Gardens, Public Walkways & Car Park, Quote per Visit 116.69, Total 4667.60 ( PO b",07/02/2024,190847,1460.28,Revenue,Chameleon Facilities Limited,78464
Chorley Borough Council,http://statistics.data.gov.uk/id/local-authority/30UE,Planning Policy,1092,GROW - Commercial Services,Salting & Gritting,20059,Grounds Maintenance Costs,5013,"Seasonal Winter Gritting service for Chorley Bus station, Bus forecourt, Passenger walkways, particular attention to bus entrance",21/02/2024,190848,1066.8,Revenue,Chameleon Facilities Limited,78464
Chorley Borough Council,http://statistics.data.gov.uk/id/local-authority/30UE,Business Support,1095,GROW - Commercial Services,Salting & Gritting,20059,Grounds Maintenance Costs,5013,"Seasonal�Winter�Gritting�service�for�Market�Walk�Shopping�Centre,�service�yards,�public�walkways�and�car�park�as�agreed. , Quote�",21/02/2024,191050,2102.92,Revenue,Chameleon Facilities Limited,78464
Chorley Borough Council,http://statistics.data.gov.uk/id/local-authority/30UE,Parking Services,1066,GROW - Commercial Services,External Contractors,50008,Private Contractors,5042,"Processing 075, , Processing 076, , Processing 077, , Processing 079, , Processing 080, , Processing 085, , Processing 086, , MIP",28/02/2024,191131,922.2,Revenue,Chipside Ltd,22063
Chorley Borough Council,http://statistics.data.gov.uk/id/local-authority/30UE,Regulatory Services,1048,PLAN - Planning & Development,Taxi Testing & Vehicle Safety Report,40234,Services,5027,MOT January 2024,21/02/2024,191089,1965.4,Revenue,Chorley Autocare Ltd,17110
Chorley Borough Council,http://statistics.data.gov.uk/id/local-authority/30UE,Capital,Capital,PLAN - Planning & Development,Main Contractor,3007,Capital Expenditure,Capital,Supply of 20nr Hedgehog houses and 50 hedgehog highways for Chorley Council Tree Giveaway and Biodiversity event on Saturday 17th,21/02/2024,191025,900,Capital,Chorley Hedgehog Rescue,90091
Chorley Borough Council,http://statistics.data.gov.uk/id/local-authority/30UE,Central Support Services,1009,EARL - Communities,Publicity - Advertising,40157,Miscellaneous Expenses,5034,Room hire - better health better self,14/02/2024,191124,2050,Revenue,Chorley Leisure Ltd,83376
Chorley Borough Council,http://statistics.data.gov.uk/id/local-authority/30UE,Central Support Services,1009,EARL - Communities,Play Events,40181,Miscellaneous Expenses,5034,"Delivery of Winter Playday event February 2024., 700 to contribute to costs involved",21/02/2024,191319,700,Revenue,Chorley Youth Zone,77339
Chorley Borough Council,http://statistics.data.gov.uk/id/local-authority/30UE,Capital,Capital,GOVN - Policy & Governance,Other Capital Related Fees,3024,Capital Expenditure,Capital,purchase of ADDRESS REDACTED,29/02/2024,191499,250000,Capital,Christine Mary Osbaldeston,90113
Chorley Borough Council,http://statistics.data.gov.uk/id/local-authority/30UE,Central Support Services,1009,GOVN - Policy & Governance,General Subscriptions,40146,Grants and Subscriptions,5031,2023/2024 Cash Flow Statement Model For Practitioners In Local Authorities (3 Year Subscription),28/02/2024,191567,1500,Revenue,CIPFA Business Ltd,16247
Chorley Borough Council,http://statistics.data.gov.uk/id/local-authority/30UE,Central Support Services,1009,GOVN - Policy & Governance,IT Software - Annual Licences,40101,Communication and Computing,5028,"Annual License Fee and Annual Support & Maintenance - Year 2 - 31/03/2024 to 30/03/2025 @ 105,100.00 , Annual Consultancy Days -",28/02/2024,191322,107600,Revenue,Civica UK Limited,17463
Chorley Borough Council,http://statistics.data.gov.uk/id/local-authority/30UE,Homelessness,1075,EARL - Communities,Grants - Tenant Participation,40142,Grants and Subscriptions,5031,0,21/02/2024,191208,614.5,Revenue,Cornel Varvariuc,90116
Chorley Borough Council,http://statistics.data.gov.uk/id/local-authority/30UE,Central Support Services,1009,GROW - Commercial Services,Gas,20014,Energy Costs,5006,Dec - 23 to Jan - 24,07/02/2024,190495,1012.11,Revenue,Corona Energy Retail 2 Ltd,67249
Chorley Borough Council,http://statistics.data.gov.uk/id/local-authority/30UE,Recreation & Sport,1037,GROW - Commercial Services,Gas,20014,Energy Costs,5006,ADDRESS REDACTED,07/02/2024,190496,34886.32,Revenue,Corona Energy Retail 2 Ltd,67249
Chorley Borough Council,http://statistics.data.gov.uk/id/local-authority/30UE,Homelessness,1075,GROW - Commercial Services,Gas,20014,Energy Costs,5006,ADDRESS REDACTED,07/02/2024,190497,3683.37,Revenue,Corona Energy Retail 2 Ltd,67249
Chorley Borough Council,http://statistics.data.gov.uk/id/local-authority/30UE,Central Support Services,1009,GROW - Commercial Services,Gas,20014,Energy Costs,5006,Dec - 23 to Jan - 24,07/02/2024,190498,646.59,Revenue,Corona Energy Retail 2 Ltd,67249
Chorley Borough Council,http://statistics.data.gov.uk/id/local-authority/30UE,Business Support,1095,GROW - Commercial Services,Gas,20014,Energy Costs,5006,Oct - 23 to Nov - 23,07/02/2024,190499,8520.2,Revenue,Corona Energy Retail 2 Ltd,67249
Chorley Borough Council,http://statistics.data.gov.uk/id/local-authority/30UE,Homelessness,1075,GROW - Commercial Services,Gas,20014,Energy Costs,5006,Nov - 23 to Dec - 23,07/02/2024,190500,3355.1,Revenue,Corona Energy Retail 2 Ltd,67249
Chorley Borough Council,http://statistics.data.gov.uk/id/local-authority/30UE,Homelessness,1075,GROW - Commercial Services,Gas,20014,Energy Costs,5006,Dec - 23 to Jan - 24,07/02/2024,190501,508.06,Revenue,Corona Energy Retail 2 Ltd,67249
Chorley Borough Council,http://statistics.data.gov.uk/id/local-authority/30UE,Recreation & Sport,1037,GROW - Commercial Services,Gas,20014,Energy Costs,5006,Dec - 23 to Jan - 24,07/02/2024,190502,1135.6,Revenue,Corona Energy Retail 2 Ltd,67249
Chorley Borough Council,http://statistics.data.gov.uk/id/local-authority/30UE,Recreation & Sport,1037,GROW - Commercial Services,Gas,20014,Energy Costs,5006,Dec - 23 to Jan - 24,07/02/2024,190503,6441.8,Revenue,Corona Energy Retail 2 Ltd,67249
Chorley Borough Council,http://statistics.data.gov.uk/id/local-authority/30UE,Central Support Services,1009,GROW - Commercial Services,Gas,20014,Energy Costs,5006,Dec - 23 to Jan - 24,07/02/2024,190504,5395.76,Revenue,Corona Energy Retail 2 Ltd,67249
Chorley Borough Council,http://statistics.data.gov.uk/id/local-authority/30UE,Recreation & Sport,1037,GROW - Commercial Services,Gas,20014,Energy Costs,5006,Dec - 23 to Jan - 24,07/02/2024,190505,1391.61,Revenue,Corona Energy Retail 2 Ltd,67249
Chorley Borough Council,http://statistics.data.gov.uk/id/local-authority/30UE,Community Development,1097,GROW - Commercial Services,Gas,20014,Energy Costs,5006,Dec - 23 to Jan - 24,07/02/2024,190506,634.99,Revenue,Corona Energy Retail 2 Ltd,67249
Chorley Borough Council,http://statistics.data.gov.uk/id/local-authority/30UE,Recreation & Sport,1037,GROW - Commercial Services,Gas,20014,Energy Costs,5006,Dec - 23 to Jan - 24,07/02/2024,190507,9107.44,Revenue,Corona Energy Retail 2 Ltd,67249
Chorley Borough Council,http://statistics.data.gov.uk/id/local-authority/30UE,Open Spaces,1038,GROW - Commercial Services,Gas,20014,Energy Costs,5006,Dec - 23 to Jan - 24,07/02/2024,190508,5545.07,Revenue,Corona Energy Retail 2 Ltd,67249
Chorley Borough Council,http://statistics.data.gov.uk/id/local-authority/30UE,Business Support,1095,GROW - Commercial Services,Gas,20014,Energy Costs,5006,Nov - 23 to Dec - 23,07/02/2024,190509,7481.18,Revenue,Corona Energy Retail 2 Ltd,67249
Chorley Borough Council,http://statistics.data.gov.uk/id/local-authority/30UE,Business Support,1095,GROW - Commercial Services,Gas,20014,Energy Costs,5006,Sep - 23 to Oct - 23,07/02/2024,190510,6632.37,Revenue,Corona Energy Retail 2 Ltd,67249
Chorley Borough Council,http://statistics.data.gov.uk/id/local-authority/30UE,Business Support,1095,GROW - Commercial Services,Gas,20014,Energy Costs,5006,,07/02/2024,190560,8428.9,Revenue,Corona Energy Retail 2 Ltd,67249
Chorley Borough Council,http://statistics.data.gov.uk/id/local-authority/30UE,Business Support,1095,GROW - Commercial Services,Gas,20014,Energy Costs,5006,,07/02/2024,190561,7148.08,Revenue,Corona Energy Retail 2 Ltd,67249
Chorley Borough Council,http://statistics.data.gov.uk/id/local-authority/30UE,Recreation & Sport,1037,GROW - Commercial Services,Gas,20014,Energy Costs,5006,,07/02/2024,190562,618.65,Revenue,Corona Energy Retail 2 Ltd,67249
Chorley Borough Council,http://statistics.data.gov.uk/id/local-authority/30UE,Culture & Heritage,1036,GROW - Commercial Services,Gas,20014,Energy Costs,5006,,07/02/2024,190563,603.1,Revenue,Corona Energy Retail 2 Ltd,67249
Chorley Borough Council,http://statistics.data.gov.uk/id/local-authority/30UE,Recreation & Sport,1037,GROW - Commercial Services,Gas,20014,Energy Costs,5006,,07/02/2024,190564,799.9,Revenue,Corona Energy Retail 2 Ltd,67249
Chorley Borough Council,http://statistics.data.gov.uk/id/local-authority/30UE,Central Support Services,1009,GROW - Commercial Services,Gas,20014,Energy Costs,5006,,07/02/2024,190566,4879.04,Revenue,Corona Energy Retail 2 Ltd,67249
Chorley Borough Council,http://statistics.data.gov.uk/id/local-authority/30UE,Homelessness,1075,GROW - Commercial Services,Gas,20014,Energy Costs,5006,,07/02/2024,190567,5686.49,Revenue,Corona Energy Retail 2 Ltd,67249
Chorley Borough Council,http://statistics.data.gov.uk/id/local-authority/30UE,Homelessness,1075,GROW - Commercial Services,Gas,20014,Energy Costs,5006,,07/02/2024,190568,1558.86,Revenue,Corona Energy Retail 2 Ltd,67249
Chorley Borough Council,http://statistics.data.gov.uk/id/local-authority/30UE,Recreation & Sport,1037,GROW - Commercial Services,Gas,20014,Energy Costs,5006,,07/02/2024,190569,4516.46,Revenue,Corona Energy Retail 2 Ltd,67249
Chorley Borough Council,http://statistics.data.gov.uk/id/local-authority/30UE,Business Support,1095,GROW - Commercial Services,Gas,20014,Energy Costs,5006,,07/02/2024,190570,10488.81,Revenue,Corona Energy Retail 2 Ltd,67249
Chorley Borough Council,http://statistics.data.gov.uk/id/local-authority/30UE,Business Support,1095,GROW - Commercial Services,Gas,20014,Energy Costs,5006,,07/02/2024,190571,9954,Revenue,Corona Energy Retail 2 Ltd,67249
Chorley Borough Council,http://statistics.data.gov.uk/id/local-authority/30UE,Business Support,1095,GROW - Commercial Services,Gas,20014,Energy Costs,5006,,07/02/2024,190572,10296.23,Revenue,Corona Energy Retail 2 Ltd,67249
Chorley Borough Council,http://statistics.data.gov.uk/id/local-authority/30UE,Business Support,1095,GROW - Commercial Services,Gas,20014,Energy Costs,5006,,07/02/2024,190573,6983.38,Revenue,Corona Energy Retail 2 Ltd,67249
Chorley Borough Council,http://statistics.data.gov.uk/id/local-authority/30UE,Homelessness,1075,GROW - Commercial Services,Gas,20014,Energy Costs,5006,,07/02/2024,190574,5072.81,Revenue,Corona Energy Retail 2 Ltd,67249
Chorley Borough Council,http://statistics.data.gov.uk/id/local-authority/30UE,Homelessness,1075,GROW - Commercial Services,Gas,20014,Energy Costs,5006,,07/02/2024,190575,3319.51,Revenue,Corona Energy Retail 2 Ltd,67249
Chorley Borough Council,http://statistics.data.gov.uk/id/local-authority/30UE,Homelessness,1075,GROW - Commercial Services,Gas,20014,Energy Costs,5006,,07/02/2024,190577,5341.24,Revenue,Corona Energy Retail 2 Ltd,67249
Chorley Borough Council,http://statistics.data.gov.uk/id/local-authority/30UE,Homelessness,1075,GROW - Commercial Services,Gas,20014,Energy Costs,5006,,07/02/2024,190578,4598.88,Revenue,Corona Energy Retail 2 Ltd,67249
Chorley Borough Council,http://statistics.data.gov.uk/id/local-authority/30UE,Homelessness,1075,GROW - Commercial Services,Gas,20014,Energy Costs,5006,,07/02/2024,190579,1601.39,Revenue,Corona Energy Retail 2 Ltd,67249
Chorley Borough Council,http://statistics.data.gov.uk/id/local-authority/30UE,Business Support,1095,GROW - Commercial Services,Gas,20014,Energy Costs,5006,,07/02/2024,190581,3523.86,Revenue,Corona Energy Retail 2 Ltd,67249
Chorley Borough Council,http://statistics.data.gov.uk/id/local-authority/30UE,Business Support,1095,GROW - Commercial Services,Gas,20014,Energy Costs,5006,,07/02/2024,190582,2729.17,Revenue,Corona Energy Retail 2 Ltd,67249
Chorley Borough Council,http://statistics.data.gov.uk/id/local-authority/30UE,Homelessness,1075,GROW - Commercial Services,Gas,20014,Energy Costs,5006,,07/02/2024,190583,1708.92,Revenue,Corona Energy Retail 2 Ltd,67249
Chorley Borough Council,http://statistics.data.gov.uk/id/local-authority/30UE,Homelessness,1075,GROW - Commercial Services,Gas,20014,Energy Costs,5006,,07/02/2024,190585,3311.74,Revenue,Corona Energy Retail 2 Ltd,67249
Chorley Borough Council,http://statistics.data.gov.uk/id/local-authority/30UE,Homelessness,1075,GROW - Commercial Services,Gas,20014,Energy Costs,5006,,07/02/2024,190594,1222.16,Revenue,Corona Energy Retail 2 Ltd,67249
Chorley Borough Council,http://statistics.data.gov.uk/id/local-authority/30UE,Business Support,1095,GROW - Commercial Services,Gas,20014,Energy Costs,5006,,07/02/2024,190595,5367.01,Revenue,Corona Energy Retail 2 Ltd,67249
Chorley Borough Council,http://statistics.data.gov.uk/id/local-authority/30UE,Homelessness,1075,GROW - Commercial Services,Gas,20014,Energy Costs,5006,,07/02/2024,190596,1739.09,Revenue,Corona Energy Retail 2 Ltd,67249
Chorley Borough Council,http://statistics.data.gov.uk/id/local-authority/30UE,Business Support,1095,GROW - Commercial Services,Gas,20014,Energy Costs,5006,,07/02/2024,190597,7212.09,Revenue,Corona Energy Retail 2 Ltd,67249
Chorley Borough Council,http://statistics.data.gov.uk/id/local-authority/30UE,Business Support,1095,GROW - Commercial Services,Gas,20014,Energy Costs,5006,,07/02/2024,190598,1624.74,Revenue,Corona Energy Retail 2 Ltd,67249
Chorley Borough Council,http://statistics.data.gov.uk/id/local-authority/30UE,Business Support,1095,GROW - Commercial Services,Gas,20014,Energy Costs,5006,,07/02/2024,190599,4365.09,Revenue,Corona Energy Retail 2 Ltd,67249
Chorley Borough Council,http://statistics.data.gov.uk/id/local-authority/30UE,Homelessness,1075,GROW - Commercial Services,Gas,20014,Energy Costs,5006,,07/02/2024,190600,2547.34,Revenue,Corona Energy Retail 2 Ltd,67249
Chorley Borough Council,http://statistics.data.gov.uk/id/local-authority/30UE,Business Support,1095,GROW - Commercial Services,Gas,20014,Energy Costs,5006,,07/02/2024,190601,5804,Revenue,Corona Energy Retail 2 Ltd,67249
Chorley Borough Council,http://statistics.data.gov.uk/id/local-authority/30UE,Business Support,1095,GROW - Commercial Services,Gas,20014,Energy Costs,5006,,07/02/2024,190602,984.14,Revenue,Corona Energy Retail 2 Ltd,67249
Chorley Borough Council,http://statistics.data.gov.uk/id/local-authority/30UE,Business Support,1095,GROW - Commercial Services,Gas,20014,Energy Costs,5006,,07/02/2024,190603,1904.83,Revenue,Corona Energy Retail 2 Ltd,67249
Chorley Borough Council,http://statistics.data.gov.uk/id/local-authority/30UE,Homelessness,1075,GROW - Commercial Services,Gas,20014,Energy Costs,5006,,07/02/2024,190604,921.99,Revenue,Corona Energy Retail 2 Ltd,67249
Chorley Borough Council,http://statistics.data.gov.uk/id/local-authority/30UE,Homelessness,1075,GROW - Commercial Services,Gas,20014,Energy Costs,5006,,07/02/2024,190605,901.51,Revenue,Corona Energy Retail 2 Ltd,67249
Chorley Borough Council,http://statistics.data.gov.uk/id/local-authority/30UE,Homelessness,1075,GROW - Commercial Services,Gas,20014,Energy Costs,5006,,07/02/2024,190606,737.46,Revenue,Corona Energy Retail 2 Ltd,67249
Chorley Borough Council,http://statistics.data.gov.uk/id/local-authority/30UE,Homelessness,1075,GROW - Commercial Services,Gas,20014,Energy Costs,5006,,07/02/2024,190607,834.97,Revenue,Corona Energy Retail 2 Ltd,67249
Chorley Borough Council,http://statistics.data.gov.uk/id/local-authority/30UE,Homelessness,1075,GROW - Commercial Services,Gas,20014,Energy Costs,5006,,07/02/2024,190608,952.75,Revenue,Corona Energy Retail 2 Ltd,67249
Chorley Borough Council,http://statistics.data.gov.uk/id/local-authority/30UE,Homelessness,1075,GROW - Commercial Services,Gas,20014,Energy Costs,5006,,07/02/2024,190609,1511.63,Revenue,Corona Energy Retail 2 Ltd,67249
Chorley Borough Council,http://statistics.data.gov.uk/id/local-authority/30UE,Business Support,1095,GROW - Commercial Services,Gas,20014,Energy Costs,5006,,07/02/2024,190610,8822.58,Revenue,Corona Energy Retail 2 Ltd,67249
Chorley Borough Council,http://statistics.data.gov.uk/id/local-authority/30UE,Homelessness,1075,GROW - Commercial Services,Gas,20014,Energy Costs,5006,,07/02/2024,190611,1000.82,Revenue,Corona Energy Retail 2 Ltd,67249
Chorley Borough Council,http://statistics.data.gov.uk/id/local-authority/30UE,Business Support,1095,GROW - Commercial Services,Gas,20014,Energy Costs,5006,,07/02/2024,190612,3450.5,Revenue,Corona Energy Retail 2 Ltd,67249
Chorley Borough Council,http://statistics.data.gov.uk/id/local-authority/30UE,Business Support,1095,GROW - Commercial Services,Gas,20014,Energy Costs,5006,,07/02/2024,190613,1722.05,Revenue,Corona Energy Retail 2 Ltd,67249
Chorley Borough Council,http://statistics.data.gov.uk/id/local-authority/30UE,Homelessness,1075,GROW - Commercial Services,Gas,20014,Energy Costs,5006,,07/02/2024,190614,1407.62,Revenue,Corona Energy Retail 2 Ltd,67249
Chorley Borough Council,http://statistics.data.gov.uk/id/local-authority/30UE,Business Support,1095,GROW - Commercial Services,Gas,20014,Energy Costs,5006,,07/02/2024,190615,2983.08,Revenue,Corona Energy Retail 2 Ltd,67249
Chorley Borough Council,http://statistics.data.gov.uk/id/local-authority/30UE,Business Support,1095,GROW - Commercial Services,Gas,20014,Energy Costs,5006,,07/02/2024,190616,2086.15,Revenue,Corona Energy Retail 2 Ltd,67249
Chorley Borough Council,http://statistics.data.gov.uk/id/local-authority/30UE,Business Support,1095,GROW - Commercial Services,Gas,20014,Energy Costs,5006,,07/02/2024,190617,1984.6,Revenue,Corona Energy Retail 2 Ltd,67249
Chorley Borough Council,http://statistics.data.gov.uk/id/local-authority/30UE,Business Support,1095,GROW - Commercial Services,Gas,20014,Energy Costs,5006,,07/02/2024,190618,1796.72,Revenue,Corona Energy Retail 2 Ltd,67249
Chorley Borough Council,http://statistics.data.gov.uk/id/local-authority/30UE,Homelessness,1075,GROW - Commercial Services,Gas,20014,Energy Costs,5006,,07/02/2024,190619,675.35,Revenue,Corona Energy Retail 2 Ltd,67249
Chorley Borough Council,http://statistics.data.gov.uk/id/local-authority/30UE,Business Support,1095,GROW - Commercial Services,Gas,20014,Energy Costs,5006,,07/02/2024,190623,1633.25,Revenue,Corona Energy Retail 2 Ltd,67249
Chorley Borough Council,http://statistics.data.gov.uk/id/local-authority/30UE,Homelessness,1075,GROW - Commercial Services,Gas,20014,Energy Costs,5006,,07/02/2024,190624,652.79,Revenue,Corona Energy Retail 2 Ltd,67249
Chorley Borough Council,http://statistics.data.gov.uk/id/local-authority/30UE,Homelessness,1075,GROW - Commercial Services,Gas,20014,Energy Costs,5006,,07/02/2024,190625,855.12,Revenue,Corona Energy Retail 2 Ltd,67249
Chorley Borough Council,http://statistics.data.gov.uk/id/local-authority/30UE,Business Support,1095,GROW - Commercial Services,Gas,20014,Energy Costs,5006,,07/02/2024,190626,1382.69,Revenue,Corona Energy Retail 2 Ltd,67249
Chorley Borough Council,http://statistics.data.gov.uk/id/local-authority/30UE,Business Support,1095,GROW - Commercial Services,Gas,20014,Energy Costs,5006,,07/02/2024,190627,1660.22,Revenue,Corona Energy Retail 2 Ltd,67249
Chorley Borough Council,http://statistics.data.gov.uk/id/local-authority/30UE,Homelessness,1075,GROW - Commercial Services,Gas,20014,Energy Costs,5006,,07/02/2024,190628,2328.89,Revenue,Corona Energy Retail 2 Ltd,67249
Chorley Borough Council,http://statistics.data.gov.uk/id/local-authority/30UE,Homelessness,1075,GROW - Commercial Services,Gas,20014,Energy Costs,5006,,07/02/2024,190629,898.99,Revenue,Corona Energy Retail 2 Ltd,67249
Chorley Borough Council,http://statistics.data.gov.uk/id/local-authority/30UE,Business Support,1095,GROW - Commercial Services,Gas,20014,Energy Costs,5006,,07/02/2024,190630,995.81,Revenue,Corona Energy Retail 2 Ltd,67249
Chorley Borough Council,http://statistics.data.gov.uk/id/local-authority/30UE,Homelessness,1075,GROW - Commercial Services,Gas,20014,Energy Costs,5006,,07/02/2024,190631,3638.09,Revenue,Corona Energy Retail 2 Ltd,67249
Chorley Borough Council,http://statistics.data.gov.uk/id/local-authority/30UE,Business Support,1095,GROW - Commercial Services,Gas,20014,Energy Costs,5006,,07/02/2024,190633,1886.79,Revenue,Corona Energy Retail 2 Ltd,67249
Chorley Borough Council,http://statistics.data.gov.uk/id/local-authority/30UE,Homelessness,1075,GROW - Commercial Services,Gas,20014,Energy Costs,5006,,07/02/2024,190634,7008.69,Revenue,Corona Energy Retail 2 Ltd,67249
Chorley Borough Council,http://statistics.data.gov.uk/id/local-authority/30UE,Homelessness,1075,GROW - Commercial Services,Gas,20014,Energy Costs,5006,,07/02/2024,190635,824.18,Revenue,Corona Energy Retail 2 Ltd,67249
Chorley Borough Council,http://statistics.data.gov.uk/id/local-authority/30UE,Homelessness,1075,GROW - Commercial Services,Gas,20014,Energy Costs,5006,,07/02/2024,190636,5885.43,Revenue,Corona Energy Retail 2 Ltd,67249
Chorley Borough Council,http://statistics.data.gov.uk/id/local-authority/30UE,Homelessness,1075,GROW - Commercial Services,Gas,20014,Energy Costs,5006,,07/02/2024,190637,659.49,Revenue,Corona Energy Retail 2 Ltd,67249
Chorley Borough Council,http://statistics.data.gov.uk/id/local-authority/30UE,Homelessness,1075,GROW - Commercial Services,Gas,20014,Energy Costs,5006,,07/02/2024,190638,908.31,Revenue,Corona Energy Retail 2 Ltd,67249
Chorley Borough Council,http://statistics.data.gov.uk/id/local-authority/30UE,Business Support,1095,GROW - Commercial Services,Gas,20014,Energy Costs,5006,,07/02/2024,190639,6076.81,Revenue,Corona Energy Retail 2 Ltd,67249
Chorley Borough Council,http://statistics.data.gov.uk/id/local-authority/30UE,Business Support,1095,GROW - Commercial Services,Gas,20014,Energy Costs,5006,,07/02/2024,190640,1449.84,Revenue,Corona Energy Retail 2 Ltd,67249
Chorley Borough Council,http://statistics.data.gov.uk/id/local-authority/30UE,Homelessness,1075,GROW - Commercial Services,Gas,20014,Energy Costs,5006,,07/02/2024,190644,754.76,Revenue,Corona Energy Retail 2 Ltd,67249
Chorley Borough Council,http://statistics.data.gov.uk/id/local-authority/30UE,Homelessness,1075,GROW - Commercial Services,Gas,20014,Energy Costs,5006,,07/02/2024,190645,1884.93,Revenue,Corona Energy Retail 2 Ltd,67249
Chorley Borough Council,http://statistics.data.gov.uk/id/local-authority/30UE,Business Support,1095,GROW - Commercial Services,Gas,20014,Energy Costs,5006,May - 21 to Jun - 21,07/02/2024,190646,1451.67,Revenue,Corona Energy Retail 2 Ltd,67249
Chorley Borough Council,http://statistics.data.gov.uk/id/local-authority/30UE,Business Support,1095,GROW - Commercial Services,Gas,20014,Energy Costs,5006,Apr - 21 to May - 21,07/02/2024,190647,1657.42,Revenue,Corona Energy Retail 2 Ltd,67249
Chorley Borough Council,http://statistics.data.gov.uk/id/local-authority/30UE,Homelessness,1075,GROW - Commercial Services,Gas,20014,Energy Costs,5006,Apr - 23 to May - 23,07/02/2024,190648,4560,Revenue,Corona Energy Retail 2 Ltd,67249
Chorley Borough Council,http://statistics.data.gov.uk/id/local-authority/30UE,Business Support,1095,GROW - Commercial Services,Gas,20014,Energy Costs,5006,Jun - 21 to Jul - 21,07/02/2024,190649,947.64,Revenue,Corona Energy Retail 2 Ltd,67249
Chorley Borough Council,http://statistics.data.gov.uk/id/local-authority/30UE,Business Support,1095,GROW - Commercial Services,Gas,20014,Energy Costs,5006,Jul - 21 to Aug - 21,07/02/2024,190650,902.17,Revenue,Corona Energy Retail 2 Ltd,67249
Chorley Borough Council,http://statistics.data.gov.uk/id/local-authority/30UE,Homelessness,1075,GROW - Commercial Services,Gas,20014,Energy Costs,5006,Feb - 23 to Mar - 23,07/02/2024,190652,5987.06,Revenue,Corona Energy Retail 2 Ltd,67249
Chorley Borough Council,http://statistics.data.gov.uk/id/local-authority/30UE,Homelessness,1075,GROW - Commercial Services,Gas,20014,Energy Costs,5006,Oct - 23 to Nov - 23,07/02/2024,190872,4998.85,Revenue,Corona Energy Retail 2 Ltd,67249
Chorley Borough Council,http://statistics.data.gov.uk/id/local-authority/30UE,Central Support Services,1009,CUST - Customer & Digital,Computer Equipment-Purchase,40098,Communication and Computing,5028,"Jabra EVOLVE 30 II Mono USB, Headset - MS, 30 Piece",28/02/2024,191577,1107,Revenue,Corporate Direct (Europe) Ltd,22135
Chorley Borough Council,http://statistics.data.gov.uk/id/local-authority/30UE,Capital,Capital,EARL - Communities,Grants,3002,Capital Expenditure,Capital,ADDRESS REDACTED,21/02/2024,191158,6025,Capital,D J Bathing,78482
Chorley Borough Council,http://statistics.data.gov.uk/id/local-authority/30UE,Capital,Capital,EARL - Communities,Grants,3002,Capital Expenditure,Capital,23/00066/CAG,28/02/2024,191664,5657,Capital,D J Bathing,78482
Chorley Borough Council,http://statistics.data.gov.uk/id/local-authority/30UE,Homelessness,1075,EARL - Communities,Grants - Tenant Participation,40142,Grants and Subscriptions,5031,0,14/02/2024,191187,500,Revenue,Daniel McKeown-Henshall,85588
Chorley Borough Council,http://statistics.data.gov.uk/id/local-authority/30UE,Central Support Services,1009,CUST - Customer & Digital,Computer Software-Maintenance,40107,Communication and Computing,5028,"SRTG15KXLI, , APC Smart-UPS RT - UPS (rack-mountable / external) - AC, 380/400/415 V - 15000 Watt - 15000 VA - RS-232, USB,, Ethe",14/02/2024,189826,15913,Revenue,Data Centre UK,85504
Chorley Borough Council,http://statistics.data.gov.uk/id/local-authority/30UE,Service Management & Support,1009,CUST - Customer & Digital,Hire Of Vehicles and Plant,30028,Contrct Hire & Operating Lease,5018,"Contract hire of 1x large sweeper and 3x compact sweepers including servicing and maintenance, 36 months",14/02/2024,191236,2824.41,Revenue,Dawson Group Environmental Municpal Civil Ltd,22011
Chorley Borough Council,http://statistics.data.gov.uk/id/local-authority/30UE,Service Management & Support,1009,CUST - Customer & Digital,Hire Of Vehicles and Plant,30028,Contrct Hire & Operating Lease,5018,"Contract hire of 1x large sweeper and 3x compact sweepers including servicing and maintenance, 36 months",14/02/2024,191237,2824.41,Revenue,Dawson Group Environmental Municpal Civil Ltd,22011
Chorley Borough Council,http://statistics.data.gov.uk/id/local-authority/30UE,Service Management & Support,1009,CUST - Customer & Digital,Hire Of Vehicles and Plant,30028,Contrct Hire & Operating Lease,5018,"Contract hire of 1x large sweeper and 3x compact sweepers including servicing and maintenance, 36 months",14/02/2024,191238,2824.41,Revenue,Dawson Group Environmental Municpal Civil Ltd,22011
Chorley Borough Council,http://statistics.data.gov.uk/id/local-authority/30UE,Service Management & Support,1009,CUST - Customer & Digital,Hire Of Vehicles and Plant,30028,Contrct Hire & Operating Lease,5018,"Contract hire of 1x large sweeper and 3x compact sweepers including servicing and maintenance, 36 months",14/02/2024,191239,3819.47,Revenue,Dawson Group Environmental Municpal Civil Ltd,22011
Chorley Borough Council,http://statistics.data.gov.uk/id/local-authority/30UE,Service Management & Support,1009,CUST - Customer & Digital,Hire Of Vehicles and Plant,30028,Contrct Hire & Operating Lease,5018,"Contract hire of 1x large sweeper and 3x compact sweepers including servicing and maintenance, 36 months",14/02/2024,191240,2824.41,Revenue,Dawson Group Environmental Municpal Civil Ltd,22011
Chorley Borough Council,http://statistics.data.gov.uk/id/local-authority/30UE,Service Management & Support,1009,CUST - Customer & Digital,Hire Of Vehicles and Plant,30028,Contrct Hire & Operating Lease,5018,"Contract hire of 1x large sweeper and 3x compact sweepers including servicing and maintenance, 36 months",14/02/2024,191241,2824.41,Revenue,Dawson Group Environmental Municpal Civil Ltd,22011
Chorley Borough Council,http://statistics.data.gov.uk/id/local-authority/30UE,Service Management & Support,1009,CUST - Customer & Digital,Hire Of Vehicles and Plant,30028,Contrct Hire & Operating Lease,5018,"Contract hire of 1x large sweeper and 3x compact sweepers including servicing and maintenance, 36 months",14/02/2024,191242,2824.41,Revenue,Dawson Group Environmental Municpal Civil Ltd,22011
Chorley Borough Council,http://statistics.data.gov.uk/id/local-authority/30UE,Service Management & Support,1009,CUST - Customer & Digital,Hire Of Vehicles and Plant,30028,Contrct Hire & Operating Lease,5018,"Contract hire of 1x large sweeper and 3x compact sweepers including servicing and maintenance, 36 months",14/02/2024,191243,3819.47,Revenue,Dawson Group Environmental Municpal Civil Ltd,22011
Chorley Borough Council,http://statistics.data.gov.uk/id/local-authority/30UE,Service Management & Support,1009,CUST - Customer & Digital,Hire Of Vehicles and Plant,30028,Contrct Hire & Operating Lease,5018,"Contract hire of 1x large sweeper and 3x compact sweepers including servicing and maintenance, 36 months",28/02/2024,191274,2824.41,Revenue,Dawson Group Environmental Municpal Civil Ltd,22011
Chorley Borough Council,http://statistics.data.gov.uk/id/local-authority/30UE,Service Management & Support,1009,CUST - Customer & Digital,Hire Of Vehicles and Plant,30028,Contrct Hire & Operating Lease,5018,"Contract hire of 1x large sweeper and 3x compact sweepers including servicing and maintenance, 36 months",28/02/2024,191275,2824.41,Revenue,Dawson Group Environmental Municpal Civil Ltd,22011
Chorley Borough Council,http://statistics.data.gov.uk/id/local-authority/30UE,Service Management & Support,1009,CUST - Customer & Digital,Hire Of Vehicles and Plant,30028,Contrct Hire & Operating Lease,5018,"Contract hire of 1x large sweeper and 3x compact sweepers including servicing and maintenance, 36 months",28/02/2024,191277,3819.47,Revenue,Dawson Group Environmental Municpal Civil Ltd,22011
Chorley Borough Council,http://statistics.data.gov.uk/id/local-authority/30UE,Service Management & Support,1009,CUST - Customer & Digital,Hire Of Vehicles and Plant,30028,Contrct Hire & Operating Lease,5018,"Contract hire of 1x large sweeper and 3x compact sweepers including servicing and maintenance, 36 months",28/02/2024,191278,2824.41,Revenue,Dawson Group Environmental Municpal Civil Ltd,22011
Chorley Borough Council,http://statistics.data.gov.uk/id/local-authority/30UE,Control Accounts,Control,GOVN - Policy & Governance,Manual Control Account,1,Balance Sheet,Balance,REFUND,07/02/2024,CRREF00102,2617.12,Revenue,E.On,21330
Chorley Borough Council,http://statistics.data.gov.uk/id/local-authority/30UE,Central Support Services,1009,EARL - Communities,Tools & Equipment - Purchase,40003,"Equipment, Furniture & Materia",5023,"Quote Reference: QT002708 - Replacement for Stolen Zephyr 1, , For any queries please contact NAME REDACTED",14/02/2024,191063,4050,Revenue,Earthsense Systems Limited,82245
Chorley Borough Council,http://statistics.data.gov.uk/id/local-authority/30UE,Capital,Capital,GROW - Commercial Services,Consultants Fees,3025,Capital Expenditure,Capital,Clayton Green Sports Centre - PPM Survey,28/02/2024,190814,975,Capital,ECS Consultants Limited,89676
Chorley Borough Council,http://statistics.data.gov.uk/id/local-authority/30UE,Capital,Capital,GROW - Commercial Services,Consultants Fees,3025,Capital Expenditure,Capital,"Brinscall Baths - PPM Survey, Including Swimming Pool inspection",28/02/2024,190814,1950,Capital,ECS Consultants Limited,89676
Chorley Borough Council,http://statistics.data.gov.uk/id/local-authority/30UE,Capital,Capital,GROW - Commercial Services,Consultants Fees,3025,Capital Expenditure,Capital,West Way Sports Hub - PPM Survey,28/02/2024,190814,975,Capital,ECS Consultants Limited,89676
Chorley Borough Council,http://statistics.data.gov.uk/id/local-authority/30UE,Capital,Capital,GROW - Commercial Services,Consultants Fees,3025,Capital Expenditure,Capital,"All Seasons Leisure Centre - PPM Survey, Including Swimming Pool Survey",28/02/2024,191244,565,Capital,ECS Consultants Limited,89676
Chorley Borough Council,http://statistics.data.gov.uk/id/local-authority/30UE,Capital,Capital,GROW - Commercial Services,Consultants Fees,3025,Capital Expenditure,Capital,Clayton Green Sports Centre - PPM Survey,28/02/2024,191244,585,Capital,ECS Consultants Limited,89676
Chorley Borough Council,http://statistics.data.gov.uk/id/local-authority/30UE,Capital,Capital,GROW - Commercial Services,Consultants Fees,3025,Capital Expenditure,Capital,"Brinscall Baths - PPM Survey, Including Swimming Pool inspection",28/02/2024,191244,2515,Capital,ECS Consultants Limited,89676
Chorley Borough Council,http://statistics.data.gov.uk/id/local-authority/30UE,Capital,Capital,GROW - Commercial Services,Consultants Fees,3025,Capital Expenditure,Capital,West Way Sports Hub - PPM Survey,28/02/2024,191244,585,Capital,ECS Consultants Limited,89676
Chorley Borough Council,http://statistics.data.gov.uk/id/local-authority/30UE,Homelessness,1075,GROW - Commercial Services,Laundry,40042,"Clothing, Uniforms and Laundry",5025,"In respect of Laundry services for period , 01/04/23 - 31/03/2024, For , Cotswold Supported housing, Cotswold Rd , Chorley",07/02/2024,190893,725.05,Revenue,Elis UK Ltd,20799
Chorley Borough Council,http://statistics.data.gov.uk/id/local-authority/30UE,Democratic Represent and  Mgnt,1007,GOVN - Policy & Governance,Grants To Other Organisations,40127,Grants and Subscriptions,5031,0,28/02/2024,189824,500,Revenue,Emerging Futures CiC,81216
Chorley Borough Council,http://statistics.data.gov.uk/id/local-authority/30UE,Homelessness,1075,EARL - Communities,Grants - Tenant Participation,40142,Grants and Subscriptions,5031,0,14/02/2024,191190,500,Revenue,Emma Tonge,85647
Chorley Borough Council,http://statistics.data.gov.uk/id/local-authority/30UE,Business Support,1095,GROW - Commercial Services,General Repairs - Reactive,20004,Repairs Maintenance & Alts,5005,"Roof condition investigation and report at Luciano`s, Unit 4 Market Walk. The scope and costs of the works are detailed in Quote,",07/02/2024,190380,1900.54,Revenue,Everlast Specialist Surveys Ltd,89705
Chorley Borough Council,http://statistics.data.gov.uk/id/local-authority/30UE,Business Support,1095,GROW - Commercial Services,General Repairs - Reactive,20004,Repairs Maintenance & Alts,5005,"Electronic leak detection at Unit 4, Market Walk Extension, Chorley. Scope and cost detailed in Quote TX.23.4001 dated 20th Decem",14/02/2024,190838,1250,Revenue,Everlast Specialist Surveys Ltd,89705
Chorley Borough Council,http://statistics.data.gov.uk/id/local-authority/30UE,Planning Policy,1092,PLAN - Planning & Development,IT Software - Annual Licences,40101,Communication and Computing,5028,"Exacom BNG Monitoring Software 4,000.00 to purchase, 3,000.00 1st year annual maintenance charge",28/02/2024,191573,7000,Revenue,Exacom,77822
Chorley Borough Council,http://statistics.data.gov.uk/id/local-authority/30UE,Service Management & Support,1009,CUST - Customer & Digital,Vehicles and Plant Maintenance,30045,Direct Transport Costs,5016,As per Estimate No Q10152,14/02/2024,190917,2079,Revenue,F R Sharrock Ltd,18091
Chorley Borough Council,http://statistics.data.gov.uk/id/local-authority/30UE,Central Support Services,1009,CUST - Customer & Digital,Unitary Payment(S),50009,Private Contractors,5042,"Provision of waste and recycling collection services to Chorley Council Sept 2023 to March 2024, (* this is a new purchase order ",07/02/2024,190400,216042.79,Revenue,FCC Recycling (UK) Ltd,89557
Chorley Borough Council,http://statistics.data.gov.uk/id/local-authority/30UE,Homelessness,1075,EARL - Communities,Grants - Tenant Participation,40142,Grants and Subscriptions,5031,0,21/02/2024,191207,500,Revenue,Francis Marsden,85643
Chorley Borough Council,http://statistics.data.gov.uk/id/local-authority/30UE,Building Control,1090,PLAN - Planning & Development,Professional Fees,40063,Services,5027,", Contractor Fees for NAME REDACTED new contract commencing 25.09.2023 for 6 months",07/02/2024,190807,2500,Revenue,Fraser Building Management Services Limited,89405
Chorley Borough Council,http://statistics.data.gov.uk/id/local-authority/30UE,Homelessness,1075,EARL - Communities,Grants - Tenant Participation,40142,Grants and Subscriptions,5031,0,14/02/2024,191179,500,Revenue,Gary MacFarlane,85416
Chorley Borough Council,http://statistics.data.gov.uk/id/local-authority/30UE,Culture & Heritage,1036,GROW - Commercial Services,Fixtures & Fittings - Purchase,20027,Fixtures and Fittings,5010,"Building inspection and preparation of a LBC application on the West wall at Astley Hall, Chorley.",07/02/2024,190189,3700,Revenue,Geoff W Maybank,64389
Chorley Borough Council,http://statistics.data.gov.uk/id/local-authority/30UE,Homelessness,1075,EARL - Communities,Grants - Tenant Participation,40142,Grants and Subscriptions,5031,0,14/02/2024,191180,500,Revenue,Georgia Louise Cann,85496
Chorley Borough Council,http://statistics.data.gov.uk/id/local-authority/30UE,Business Support,1095,GOVN - Policy & Governance,Promotional Expenses,40159,Miscellaneous Expenses,5034,Annual support for the Chorley Extra Care subsite for 11 Jan 2024 to 11 Jan 2025,28/02/2024,191416,500,Revenue,GOSS Interactive Limited,20316
Chorley Borough Council,http://statistics.data.gov.uk/id/local-authority/30UE,Central Support Services,1009,PLAN - Planning & Development,Vandalism Repairs,20005,Repairs Maintenance & Alts,5005,Grafitti removal contract December 2023 ongoing,07/02/2024,190818,945,Revenue,Graffiti Away Ltd,78340
Chorley Borough Council,http://statistics.data.gov.uk/id/local-authority/30UE,Corporate Management,1008,GROW - Commercial Services,Publicity - Advertising,40157,Miscellaneous Expenses,5034,"Social media for Market Walk Shopping Centre Chorley., February & March 24 @ 500 per month",07/02/2024,190516,500,Revenue,Gravity,77837
Chorley Borough Council,http://statistics.data.gov.uk/id/local-authority/30UE,Central Support Services,1009,GOVN - Policy & Governance,HM Land Registry Fees,40174,Miscellaneous Expenses,5034,,29/02/2024,191372,689,Revenue,H M Land Registry,17567
Chorley Borough Council,http://statistics.data.gov.uk/id/local-authority/30UE,Tourism,1039,GOVN - Policy & Governance,Misc Expenses,40200,Miscellaneous Expenses,5034,Winter Wonderland: Delivery of red diesel,07/02/2024,190758,1249.03,Revenue,Harrison Oils Ltd,76429
Chorley Borough Council,http://statistics.data.gov.uk/id/local-authority/30UE,Tourism,1039,GOVN - Policy & Governance,Misc Expenses,40200,Miscellaneous Expenses,5034,Winter Wonderland: Delivery of red diesel,07/02/2024,190769,1604.83,Revenue,Harrison Oils Ltd,76429
Chorley Borough Council,http://statistics.data.gov.uk/id/local-authority/30UE,Tourism,1039,GOVN - Policy & Governance,Misc Expenses,40200,Miscellaneous Expenses,5034,Winter Wonderland: Delivery of red diesel,07/02/2024,190771,1200.64,Revenue,Harrison Oils Ltd,76429
Chorley Borough Council,http://statistics.data.gov.uk/id/local-authority/30UE,Homelessness,1075,EARL - Communities,Grants - Tenant Participation,40142,Grants and Subscriptions,5031,0,14/02/2024,191188,500,Revenue,Helen Millward,87008
Chorley Borough Council,http://statistics.data.gov.uk/id/local-authority/30UE,Tourism,1039,GOVN - Policy & Governance,External Contractor,40198,Miscellaneous Expenses,5034,Provision of Tipis and Toilets for Winter Wonderland - Second Payment,07/02/2024,190689,2200,Revenue,Helsby Tents,89715
Chorley Borough Council,http://statistics.data.gov.uk/id/local-authority/30UE,Central Support Services,1009,CUST - Customer & Digital,Telephones - Other,40085,Communication and Computing,5028,Hybrit SIP charges Dec 23,07/02/2024,188546,747.5,Revenue,Hybrit LLP,77925
Chorley Borough Council,http://statistics.data.gov.uk/id/local-authority/30UE,Central Support Services,1009,CUST - Customer & Digital,Telephones - Other,40085,Communication and Computing,5028,Hybrit SIP charges Jan 24,07/02/2024,190332,747.5,Revenue,Hybrit LLP,77925
Chorley Borough Council,http://statistics.data.gov.uk/id/local-authority/30UE,Corporate Management,1008,GOVN - Policy & Governance,Other Fees,40212,Miscellaneous Expenses,5034,Subsidy for the provision of a meals on wheels service in Chorley from 1 April 2023 to 31 March 2024,28/02/2024,188093,3109.89,Revenue,I Care GB Ltd,77247
Chorley Borough Council,http://statistics.data.gov.uk/id/local-authority/30UE,Corporate Management,1008,GOVN - Policy & Governance,Other Fees,40212,Miscellaneous Expenses,5034,Subsidy for the provision of a meals on wheels service in Chorley from 1 April 2023 to 31 March 2024,28/02/2024,190134,3246.18,Revenue,I Care GB Ltd,77247
Chorley Borough Council,http://statistics.data.gov.uk/id/local-authority/30UE,Corporate Management,1008,GOVN - Policy & Governance,Other Fees,40212,Miscellaneous Expenses,5034,Subsidy for the provision of a meals on wheels service in Chorley from 1 April 2023 to 31 March 2024,28/02/2024,190803,3217.27,Revenue,I Care GB Ltd,77247
Chorley Borough Council,http://statistics.data.gov.uk/id/local-authority/30UE,Business Support,1095,GROW - Commercial Services,Refreshments,40036,Catering,5024,JAN/FEB & MARCH Milk Orders - Separate GRN on receipt (DO NOT COMPLETE),07/02/2024,190835,528.24,Revenue,I W Critchley & Son,77615
Chorley Borough Council,http://statistics.data.gov.uk/id/local-authority/30UE,Business Support,1095,GROW - Commercial Services,General Repairs - Reactive,20004,Repairs Maintenance & Alts,5005,Per your quotation QTE-073091 for installation of equipment in Video Web Conferencing room 2,28/02/2024,191495,1470,Revenue,IDN Supplies,78102
Chorley Borough Council,http://statistics.data.gov.uk/id/local-authority/30UE,Central Support Services,1009,CUST - Customer & Digital,IT Software - Annual Licences,40101,Communication and Computing,5028,12 month maintenance,07/02/2024,190742,726.2,Revenue,IDOX Software Limited,17542
Chorley Borough Council,http://statistics.data.gov.uk/id/local-authority/30UE,Central Support Services,1009,CUST - Customer & Digital,Computer Equipment-Purchase,40098,Communication and Computing,5028,half day consultancy,28/02/2024,191417,600,Revenue,IDOX Software Limited,17542
Chorley Borough Council,http://statistics.data.gov.uk/id/local-authority/30UE,Central Support Services,1009,CUST - Customer & Digital,Printing,40043,"Printing, Stationery & General",5026,Hybrid Mail,28/02/2024,187588,611.56,Revenue,Imail Comms Limited,89533
Chorley Borough Council,http://statistics.data.gov.uk/id/local-authority/30UE,Central Support Services,1009,CUST - Customer & Digital,Printing,40043,"Printing, Stationery & General",5026,Hybrid Mail,28/02/2024,187591,1091.99,Revenue,Imail Comms Limited,89533
Chorley Borough Council,http://statistics.data.gov.uk/id/local-authority/30UE,Central Support Services,1009,CUST - Customer & Digital,Printing,40043,"Printing, Stationery & General",5026,Hybrid Mail,28/02/2024,187592,1345.46,Revenue,Imail Comms Limited,89533
Chorley Borough Council,http://statistics.data.gov.uk/id/local-authority/30UE,Central Support Services,1009,CUST - Customer & Digital,Printing,40043,"Printing, Stationery & General",5026,Hybrid Mail,28/02/2024,187593,863.79,Revenue,Imail Comms Limited,89533
Chorley Borough Council,http://statistics.data.gov.uk/id/local-authority/30UE,Central Support Services,1009,CUST - Customer & Digital,Printing,40043,"Printing, Stationery & General",5026,Hybrid Mail,28/02/2024,187612,667.57,Revenue,Imail Comms Limited,89533
Chorley Borough Council,http://statistics.data.gov.uk/id/local-authority/30UE,Central Support Services,1009,CUST - Customer & Digital,Printing,40043,"Printing, Stationery & General",5026,Hybrid Mail,28/02/2024,187613,555.8,Revenue,Imail Comms Limited,89533
Chorley Borough Council,http://statistics.data.gov.uk/id/local-authority/30UE,Central Support Services,1009,CUST - Customer & Digital,Printing,40043,"Printing, Stationery & General",5026,Hybrid Mail,28/02/2024,189245,2597.69,Revenue,Imail Comms Limited,89533
Chorley Borough Council,http://statistics.data.gov.uk/id/local-authority/30UE,Central Support Services,1009,CUST - Customer & Digital,Printing,40043,"Printing, Stationery & General",5026,Hybrid Mail,28/02/2024,189578,739.17,Revenue,Imail Comms Limited,89533
Chorley Borough Council,http://statistics.data.gov.uk/id/local-authority/30UE,Central Support Services,1009,CUST - Customer & Digital,Printing,40043,"Printing, Stationery & General",5026,Hybrid Mail,28/02/2024,189689,921.39,Revenue,Imail Comms Limited,89533
Chorley Borough Council,http://statistics.data.gov.uk/id/local-authority/30UE,Central Support Services,1009,CUST - Customer & Digital,Printing,40043,"Printing, Stationery & General",5026,Hybrid Mail,28/02/2024,189854,894.54,Revenue,Imail Comms Limited,89533
Chorley Borough Council,http://statistics.data.gov.uk/id/local-authority/30UE,Central Support Services,1009,CUST - Customer & Digital,Printing,40043,"Printing, Stationery & General",5026,Hybrid Mail,28/02/2024,190184,1371.86,Revenue,Imail Comms Limited,89533
Chorley Borough Council,http://statistics.data.gov.uk/id/local-authority/30UE,Central Support Services,1009,CUST - Customer & Digital,Printing,40043,"Printing, Stationery & General",5026,Hybrid Mail,28/02/2024,190323,834.5,Revenue,Imail Comms Limited,89533
Chorley Borough Council,http://statistics.data.gov.uk/id/local-authority/30UE,Central Support Services,1009,CUST - Customer & Digital,Printing,40043,"Printing, Stationery & General",5026,Hybrid Mail,28/02/2024,190535,1446.64,Revenue,Imail Comms Limited,89533
Chorley Borough Council,http://statistics.data.gov.uk/id/local-authority/30UE,Central Support Services,1009,CUST - Customer & Digital,Printing,40043,"Printing, Stationery & General",5026,Hybrid Mail,28/02/2024,190752,1358.07,Revenue,Imail Comms Limited,89533
Chorley Borough Council,http://statistics.data.gov.uk/id/local-authority/30UE,Central Support Services,1009,CUST - Customer & Digital,Printing,40043,"Printing, Stationery & General",5026,Hybrid Mail,28/02/2024,191034,931.48,Revenue,Imail Comms Limited,89533
Chorley Borough Council,http://statistics.data.gov.uk/id/local-authority/30UE,Central Support Services,1009,CUST - Customer & Digital,Printing,40043,"Printing, Stationery & General",5026,Hybrid Mail,28/02/2024,191325,939.96,Revenue,Imail Comms Limited,89533
Chorley Borough Council,http://statistics.data.gov.uk/id/local-authority/30UE,Corporate Management,1008,GOVN - Policy & Governance,Professional Fees,40063,Services,5027,Brokerage B3256 East Sussex County Council,07/02/2024,190876,2493.15,Revenue,Imperial Treasury Services,90059
Chorley Borough Council,http://statistics.data.gov.uk/id/local-authority/30UE,Central Support Services,1009,GOVN - Policy & Governance,Refuse Collection,20037,Cleaning and Domestic Supplies,5012,quarterly charges for all council sites for hygiene services 3800,07/02/2024,190805,3281.2,Revenue,Initial,78488
Chorley Borough Council,http://statistics.data.gov.uk/id/local-authority/30UE,Central Support Services,1009,GOVN - Policy & Governance,Refuse Collection,20037,Cleaning and Domestic Supplies,5012,quarterly charges for all council sites for hygiene services 3800,14/02/2024,190892,3281.2,Revenue,Initial,78488
Chorley Borough Council,http://statistics.data.gov.uk/id/local-authority/30UE,Central Support Services,1009,GOVN - Policy & Governance,IT Software - Annual Licences,40101,Communication and Computing,5028,"Supply, Delivery, and Implementation of a Recruitment Solution as detailed in the ITQ with addition of 120 job multi posts, 500 S",28/02/2024,189868,1435,Revenue,ITS Software Systems Ltd t/a Eploy,89437
Chorley Borough Council,http://statistics.data.gov.uk/id/local-authority/30UE,Central Support Services,1009,GOVN - Policy & Governance,IT Software - Annual Licences,40101,Communication and Computing,5028,"Supply, Delivery, and Implementation of a Recruitment Solution as detailed in the ITQ with addition of 120 job multi posts, 500 S",28/02/2024,190781,1435,Revenue,ITS Software Systems Ltd t/a Eploy,89437
Chorley Borough Council,http://statistics.data.gov.uk/id/local-authority/30UE,Homelessness,1075,EARL - Communities,Grants - Tenant Participation,40142,Grants and Subscriptions,5031,0,14/02/2024,191184,500,Revenue,Jason O`Flaherty,85502
Chorley Borough Council,http://statistics.data.gov.uk/id/local-authority/30UE,Service Management & Support,1009,CUST - Customer & Digital,Supplies-Grounds Maintenance,40025,"Equipment, Furniture & Materia",5023,"Supply 50 x1.2mx3``x76mm galvanised posts , , Delivery to Bengal St Depot PR7 1SA",07/02/2024,190739,1487.5,Revenue,Jewsons Limited,17844
Chorley Borough Council,http://statistics.data.gov.uk/id/local-authority/30UE,Service Management & Support,1009,CUST - Customer & Digital,Supplies-Grounds Maintenance,40025,"Equipment, Furniture & Materia",5023,"Christmas tree for Market St, 5xother small trees for other Chorley Council buildings",14/02/2024,191252,3054.38,Revenue,John H Mayor & Sons Ltd,16635
Chorley Borough Council,http://statistics.data.gov.uk/id/local-authority/30UE,Homelessness,1075,EARL - Communities,Grants - Tenant Participation,40142,Grants and Subscriptions,5031,0,14/02/2024,191181,500,Revenue,Joyce Harasimiuk,85418
Chorley Borough Council,http://statistics.data.gov.uk/id/local-authority/30UE,Central Support Services,1009,PLAN - Planning & Development,Tools & Equipment - Purchase,40003,"Equipment, Furniture & Materia",5023,"10,000 Dog Poop Bags with agreed artwork plus delivery charge as per quote",07/02/2024,190754,503.74,Revenue,JRB EnterpriseLtd,21819
Chorley Borough Council,http://statistics.data.gov.uk/id/local-authority/30UE,Capital,Capital,EARL - Communities,Grants,3002,Capital Expenditure,Capital,ADDRESS REDACTED,21/02/2024,191082,1500,Capital,K Berry Ltd,16421
Chorley Borough Council,http://statistics.data.gov.uk/id/local-authority/30UE,Capital,Capital,EARL - Communities,Grants,3002,Capital Expenditure,Capital,Preliminaries and shower,21/02/2024,191088,5250,Capital,K Berry Ltd,16421
Chorley Borough Council,http://statistics.data.gov.uk/id/local-authority/30UE,Capital,Capital,EARL - Communities,Grants,3002,Capital Expenditure,Capital,ADDRESS REDACTED,21/02/2024,191151,1178,Capital,K Berry Ltd,16421
Chorley Borough Council,http://statistics.data.gov.uk/id/local-authority/30UE,Capital,Capital,EARL - Communities,Grants,3002,Capital Expenditure,Capital,ADDRESS REDACTED,21/02/2024,191152,6600,Capital,K Berry Ltd,16421
Chorley Borough Council,http://statistics.data.gov.uk/id/local-authority/30UE,Capital,Capital,EARL - Communities,Grants,3002,Capital Expenditure,Capital,ADDRESS REDACTED,21/02/2024,191153,5300,Capital,K Berry Ltd,16421
Chorley Borough Council,http://statistics.data.gov.uk/id/local-authority/30UE,Capital,Capital,EARL - Communities,Grants,3002,Capital Expenditure,Capital,ADDRESS REDACTED,21/02/2024,191154,7870,Capital,K Berry Ltd,16421
Chorley Borough Council,http://statistics.data.gov.uk/id/local-authority/30UE,Capital,Capital,EARL - Communities,Grants,3002,Capital Expenditure,Capital,ADDRESS REDACTED,21/02/2024,191155,5840,Capital,K Berry Ltd,16421
Chorley Borough Council,http://statistics.data.gov.uk/id/local-authority/30UE,Capital,Capital,EARL - Communities,Grants,3002,Capital Expenditure,Capital,ADDRESS REDACTED,21/02/2024,191156,7800,Capital,K Berry Ltd,16421
Chorley Borough Council,http://statistics.data.gov.uk/id/local-authority/30UE,Business Support,1095,GROW - Commercial Services,Uniforms,40039,"Clothing, Uniforms and Laundry",5025,"As per quote dated 10.10.23 (TCAs), , 10 x PATROL SHIRT RED SIZE 3L, 3XS, 4M @ 19.95 each, , 2 x CLASSIC SWEATSHIRTS BLACK L 	 @",07/02/2024,190542,673.05,Revenue,Keltic Clothing,21988
Chorley Borough Council,http://statistics.data.gov.uk/id/local-authority/30UE,Economic Development,1096,GROW - Commercial Services,Refuse Collection,20037,Cleaning and Domestic Supplies,5012,"Market Walk/Market Walk Extension/Markets/Calico Lounge/Reel Cinema Waste Removal 01.04.2023 - 31.03.2024:, , Market Walk YARD 1 ",21/02/2024,191303,1836,Revenue,Kenny Waste Management Ltd,88641
Chorley Borough Council,http://statistics.data.gov.uk/id/local-authority/30UE,Homelessness,1075,EARL - Communities,Grants - Tenant Participation,40142,Grants and Subscriptions,5031,0,14/02/2024,191186,500,Revenue,Kevin Eardley,85644
Chorley Borough Council,http://statistics.data.gov.uk/id/local-authority/30UE,Business Support,1095,GROW - Commercial Services,Planned Maintenance,20006,Repairs Maintenance & Alts,5005,Fully comprehensive with 24/7 connected services (remote monitoring) Lifts at Tatton Gardens.,07/02/2024,190544,3000,Revenue,Kone Plc,90050
Chorley Borough Council,http://statistics.data.gov.uk/id/local-authority/30UE,Business Support,1095,GROW - Commercial Services,General Repairs - Reactive,20004,Repairs Maintenance & Alts,5005,"Grill and ducting relocations in Offices 38 and 39 at Strawberry Fields, Digital Office Park. Cost and scope are detailed in quot",14/02/2024,190843,887,Revenue,Kool Planet Limited,22033
Chorley Borough Council,http://statistics.data.gov.uk/id/local-authority/30UE,Business Support,1095,GROW - Commercial Services,General Repairs - Reactive,20004,Repairs Maintenance & Alts,5005,"Supply and fit new motor for air conditioning unit in HRU01 at Strawberry Fields, Digital Office Park. Cost and scope are detaile",14/02/2024,190846,2298.94,Revenue,Kool Planet Limited,22033
Chorley Borough Council,http://statistics.data.gov.uk/id/local-authority/30UE,Control Accounts,Control,GOVN - Policy & Governance,General Balances,100,Balance Sheet,Balance,Labour Councillors Association - Jan 24 Monthly Deductions from Payroll,14/02/2024,190995,4819.82,Revenue,Labour Councillors Association,17577
Chorley Borough Council,http://statistics.data.gov.uk/id/local-authority/30UE,Parking Services,1066,GROW - Commercial Services,Car Park Lamps,20064,Grounds Maintenance Costs,5013,"Car park lighting inspection and repair works, , To carry out visual inspection on each council car park lighting columns in Oct/",07/02/2024,190808,2300,Revenue,Lancashire County Council,20027
Chorley Borough Council,http://statistics.data.gov.uk/id/local-authority/30UE,Parking Services,1066,GROW - Commercial Services,Car Park Lamps,20064,Grounds Maintenance Costs,5013,Additional remedial earthing works on Flat Iron and additional works on Hallgate car park,07/02/2024,190808,750.36,Revenue,Lancashire County Council,20027
Chorley Borough Council,http://statistics.data.gov.uk/id/local-authority/30UE,Capital,Capital,EARL - Communities,Grants,3002,Capital Expenditure,Capital,ADDRESS REDACTED,21/02/2024,191150,5144.02,Capital,Lancashire County Council,17758
Chorley Borough Council,http://statistics.data.gov.uk/id/local-authority/30UE,Collection Fund Revenue Accoun,0,GOVN - Policy & Governance,LCC Precept,2009,Precepts & Collection Fund,Precept,LCC CT precept,29/02/2024,191438,6037837,Revenue,Lancashire County Council,18386
Chorley Borough Council,http://statistics.data.gov.uk/id/local-authority/30UE,Collection Fund Revenue Accoun,0,GOVN - Policy & Governance,NNDR County Share,2036,Precepts & Collection Fund,Precept,LCC B-Rates precept,29/02/2024,191438,244995,Revenue,Lancashire County Council,18386
Chorley Borough Council,http://statistics.data.gov.uk/id/local-authority/30UE,Central Support Services,1009,CUST - Customer & Digital,Clinical Waste Collection,50007,Private Contractors,5042,Domestic clinical waste collections 2023/24,07/02/2024,190691,2379.18,Revenue,Lancashire Environmental Services,82309
Chorley Borough Council,http://statistics.data.gov.uk/id/local-authority/30UE,Central Support Services,1009,CUST - Customer & Digital,Clinical Waste Collection,50007,Private Contractors,5042,Domestic clinical waste collections 2023/24,28/02/2024,191570,2889.85,Revenue,Lancashire Environmental Services,82309
Chorley Borough Council,http://statistics.data.gov.uk/id/local-authority/30UE,Central Support Services,1009,GROW - Commercial Services,General Repairs - Reactive,20004,Repairs Maintenance & Alts,5005,"Temporary supply including delivery & collection of a mobile aircon unit to room 12 at Whittle Surgery, 400 pcm for 3 months tot",07/02/2024,185593,1200,Revenue,Lancashire Gas Services Ltd,78192
Chorley Borough Council,http://statistics.data.gov.uk/id/local-authority/30UE,Central Support Services,1009,GROW - Commercial Services,General Repairs - Reactive,20004,Repairs Maintenance & Alts,5005,"Reactive Gas, Air Conditioning and Plumbing Repair Works @ CBC Housing",07/02/2024,190394,541.89,Revenue,Lancashire Gas Services Ltd,78192
Chorley Borough Council,http://statistics.data.gov.uk/id/local-authority/30UE,Central Support Services,1009,GROW - Commercial Services,General Repairs - Reactive,20004,Repairs Maintenance & Alts,5005,"Reactive Gas, Air Conditioning and Plumbing Repair Works @ Astley Hall & Buildings",07/02/2024,190472,651.69,Revenue,Lancashire Gas Services Ltd,78192
Chorley Borough Council,http://statistics.data.gov.uk/id/local-authority/30UE,Central Support Services,1009,GROW - Commercial Services,General Repairs - Reactive,20004,Repairs Maintenance & Alts,5005,"Reactive Gas, Air Conditioning and Plumbing Repair Works @ Cotswold House",14/02/2024,190785,947.82,Revenue,Lancashire Gas Services Ltd,78192
Chorley Borough Council,http://statistics.data.gov.uk/id/local-authority/30UE,Central Support Services,1009,GROW - Commercial Services,General Repairs - Reactive,20004,Repairs Maintenance & Alts,5005,"Reactive Gas, Air Conditioning and Plumbing Repair Works @ Chorley Bus Station",14/02/2024,190918,583.41,Revenue,Lancashire Gas Services Ltd,78192
Chorley Borough Council,http://statistics.data.gov.uk/id/local-authority/30UE,Central Support Services,1009,GROW - Commercial Services,Planned Maintenance,20006,Repairs Maintenance & Alts,5005,"Planned Gas, Air Conditioning and Plumbing Maintenance and Remedial Works also includes insurance inspector remedials @ Cotswold ",14/02/2024,190976,889.97,Revenue,Lancashire Gas Services Ltd,78192
Chorley Borough Council,http://statistics.data.gov.uk/id/local-authority/30UE,Central Support Services,1009,GROW - Commercial Services,General Repairs - Reactive,20004,Repairs Maintenance & Alts,5005,"Reactive Gas, Air Conditioning and Plumbing Repair Works @ CBC Housing",14/02/2024,190978,773.25,Revenue,Lancashire Gas Services Ltd,78192
Chorley Borough Council,http://statistics.data.gov.uk/id/local-authority/30UE,Central Support Services,1009,GROW - Commercial Services,General Repairs - Reactive,20004,Repairs Maintenance & Alts,5005,"Reactive Gas, Air Conditioning and Plumbing Repair Works @ Astley Hall & Buildings",21/02/2024,191136,838.87,Revenue,Lancashire Gas Services Ltd,78192
Chorley Borough Council,http://statistics.data.gov.uk/id/local-authority/30UE,Central Support Services,1009,GOVN - Policy & Governance,Consultants` Fees,40077,Services,5027,"Mercer`s Actuarial Services - Accounting Schedule for the Year ending 31st March 2022 , Audit Q&A Paper",14/02/2024,191173,522.35,Revenue,Lancashire Pensions Service BACS ONLY,78212
Chorley Borough Council,http://statistics.data.gov.uk/id/local-authority/30UE,Unapportionable Central OHeads,1009,GOVN - Policy & Governance,Pensions Increase Act Payments,18005,Indirect Employee Expenses,5002,CAY Nov 22 - Mar 23,29/02/2024,191035,84768.58,Revenue,Lancashire Pensions Services DD ONLY,16696
Chorley Borough Council,http://statistics.data.gov.uk/id/local-authority/30UE,Unapportionable Central OHeads,1009,GOVN - Policy & Governance,Pensions Increase Act Payments,18005,Indirect Employee Expenses,5002,cay april 23 sept 23,29/02/2024,191037,111727.28,Revenue,Lancashire Pensions Services DD ONLY,16696
Chorley Borough Council,http://statistics.data.gov.uk/id/local-authority/30UE,Service Management & Support,1009,CUST - Customer & Digital,Vehicles and Plant Maintenance,30045,Direct Transport Costs,5016,"CUSTOMER JOB NO. 8136, Description, VIN REDACTED - Driver Defects - see defects list below, VTG Plate Missing, 2nd Axle Nearside Inner",07/02/2024,190517,854.21,Revenue,Lancashire Waste Services,78129
Chorley Borough Council,http://statistics.data.gov.uk/id/local-authority/30UE,Collection Fund Revenue Accoun,0,GOVN - Policy & Governance,LCFA Precept,2011,Precepts & Collection Fund,Precept,LCFA CT precept,29/02/2024,191440,315444,Revenue,Lancs Combined Fire Authority,17768
Chorley Borough Council,http://statistics.data.gov.uk/id/local-authority/30UE,Collection Fund Revenue Accoun,0,GOVN - Policy & Governance,NNDR Fire Share,2037,Precepts & Collection Fund,Precept,LCFA B-Rates precept,29/02/2024,191440,27221,Revenue,Lancs Combined Fire Authority,17768
Chorley Borough Council,http://statistics.data.gov.uk/id/local-authority/30UE,Tourism,1039,GOVN - Policy & Governance,Tools & Equipment - Hire,40004,"Equipment, Furniture & Materia",5023,Provision of Land Train Hire 9th 10th 16th 17th December,07/02/2024,190667,2445,Revenue,Land Train Hire Nationwide,89653
Chorley Borough Council,http://statistics.data.gov.uk/id/local-authority/30UE,Central Support Services,1009,GOVN - Policy & Governance,General Subscriptions,40146,Grants and Subscriptions,5031,"Financial Intelligence Toolkit 2024/25: Collection Fund Suite 7,995; MTRR 2,095; Funding Briefings and monthly Hot Topic webina",21/02/2024,191043,12735,Revenue,LG Futures,22551
Chorley Borough Council,http://statistics.data.gov.uk/id/local-authority/30UE,Central Support Services,1009,GOVN - Policy & Governance,HR Approved Occ Health Fees,15201,Indirect Employee Expenses,5002,Counselling for staff in December 2023,14/02/2024,190366,540,Revenue,Livewell Counselling Service,63084
Chorley Borough Council,http://statistics.data.gov.uk/id/local-authority/30UE,Central Support Services,1009,GOVN - Policy & Governance,HR Approved Occ Health Fees,15201,Indirect Employee Expenses,5002,Counselling for Staff in October 2023 Invoice CC1023,28/02/2024,191442,765,Revenue,Livewell Counselling Service,63084
Chorley Borough Council,http://statistics.data.gov.uk/id/local-authority/30UE,Business Support,1095,GROW - Commercial Services,Professional Fees,40063,Services,5027,"Professional services, providing on-going commercial advice for Market Walk and negotiating renewed lease terms for the current T",21/02/2024,190518,4875,Revenue,Lyons Thompson Letts Property Consultants,78423
Chorley Borough Council,http://statistics.data.gov.uk/id/local-authority/30UE,Business Support,1095,GROW - Commercial Services,Professional Fees,40063,Services,5027,"Professional services, providing on-going commercial advice for 28-29 Market Walk and negotiating renewed lease terms for the cur",07/02/2024,190705,3600,Revenue,Lyons Thompson Letts Property Consultants,78423
Chorley Borough Council,http://statistics.data.gov.uk/id/local-authority/30UE,Service Management & Support,1009,CUST - Customer & Digital,Grounds Maintenance Contractor,20043,Grounds Maintenance Costs,5013,Walker Tree Services Invoice 71,28/02/2024,191443,2890,Revenue,M J Walker,62044
Chorley Borough Council,http://statistics.data.gov.uk/id/local-authority/30UE,Tourism,1039,GOVN - Policy & Governance,Misc Expenses,40200,Miscellaneous Expenses,5034,"Christmas Pantomimes - 17 December 2023 , Chorley Town Hall, PR7 1DP - Lancastrian Suite , 2 performances of Cinderella , 11am & ",07/02/2024,189794,2398,Revenue,M&M Productions,84125
Chorley Borough Council,http://statistics.data.gov.uk/id/local-authority/30UE,Central Support Services,1009,GROW - Commercial Services,General Repairs - Reactive,20004,Repairs Maintenance & Alts,5005,RSA3 - Cleveland Street Car Park,14/02/2024,190957,1495,Revenue,Madhavan Design Limited T/A Highway Associates,90068
Chorley Borough Council,http://statistics.data.gov.uk/id/local-authority/30UE,Business Support,1095,GROW - Commercial Services,Planned Maintenance,20006,Repairs Maintenance & Alts,5005,"Fire Risk Assessment at Strawberry Fields, Digital Office Park., , The costs and scope of the FRA are detailed in the email sent ",07/02/2024,190716,1775,Revenue,Manchester Fire Compliance Ltd,89688
Chorley Borough Council,http://statistics.data.gov.uk/id/local-authority/30UE,Homelessness,1075,EARL - Communities,Furniture - Purchase,40012,"Equipment, Furniture & Materia",5023,"ADDRESS REDACTED Flooring Fitting , 1. 1450 for Carpets & underlay including fitting, 2. 1490 for Laminate flooring including fit",21/02/2024,191318,2940,Revenue,Master Carpets Ltd,84717
Chorley Borough Council,http://statistics.data.gov.uk/id/local-authority/30UE,Central Support Services,1009,GROW - Commercial Services,General Repairs - Reactive,20004,Repairs Maintenance & Alts,5005,"Union St, Reactive Drainage and Groundworks Repair Works",14/02/2024,190925,770,Revenue,Michael Roe,78294
Chorley Borough Council,http://statistics.data.gov.uk/id/local-authority/30UE,Collection Fund Revenue Accoun,0,GOVN - Policy & Governance,NNDR Central Share,2034,Precepts & Collection Fund,Precept,Central Share BR,29/02/2024,191667,1062692,Revenue,Ministry of Housing Communities & Local Government,16280
Chorley Borough Council,http://statistics.data.gov.uk/id/local-authority/30UE,Collection Fund Revenue Accoun,0,GOVN - Policy & Governance,NNDR Central Share,2034,Precepts & Collection Fund,Precept,Deficit Collection Fund,29/02/2024,191667,26175,Revenue,Ministry of Housing Communities & Local Government,16280
Chorley Borough Council,http://statistics.data.gov.uk/id/local-authority/30UE,Capital,Capital,EARL - Communities,Grants,3002,Capital Expenditure,Capital,,14/02/2024,190985,4569.44,Capital,Mint Northwest Ltd,65607
Chorley Borough Council,http://statistics.data.gov.uk/id/local-authority/30UE,Capital,Capital,EARL - Communities,Grants,3002,Capital Expenditure,Capital,ADDRESS REDACTED,21/02/2024,191149,7378.7,Capital,Mint Northwest Ltd,65607
Chorley Borough Council,http://statistics.data.gov.uk/id/local-authority/30UE,Private Sector HSG Renewal,1073,EARL - Communities,External Contractor,40198,Miscellaneous Expenses,5034,Ref 201293,07/02/2024,190664,560,Revenue,Mobility Care Services,70841
Chorley Borough Council,http://statistics.data.gov.uk/id/local-authority/30UE,Private Sector HSG Renewal,1073,EARL - Communities,External Contractor,40198,Miscellaneous Expenses,5034,Ref 201303,07/02/2024,190664,520,Revenue,Mobility Care Services,70841
Chorley Borough Council,http://statistics.data.gov.uk/id/local-authority/30UE,Private Sector HSG Renewal,1073,EARL - Communities,External Contractor,40198,Miscellaneous Expenses,5034,Ref 201304,07/02/2024,190664,523,Revenue,Mobility Care Services,70841
Chorley Borough Council,http://statistics.data.gov.uk/id/local-authority/30UE,Capital,Capital,EARL - Communities,Grants,3002,Capital Expenditure,Capital,ADDRESS REDACTED,21/02/2024,191148,3800,Capital,Mobility Care Services,70841
Chorley Borough Council,http://statistics.data.gov.uk/id/local-authority/30UE,Homelessness,1075,EARL - Communities,Grants - Tenant Participation,40142,Grants and Subscriptions,5031,0,14/02/2024,191196,500,Revenue,Mykola Kovalenko,89290
Chorley Borough Council,http://statistics.data.gov.uk/id/local-authority/30UE,Development Control,1091,PLAN - Planning & Development,Statutory Notices,40160,Miscellaneous Expenses,5034,Planning Public Notices to appear in the Chorley Guardian April 2023 to March 2024,07/02/2024,190466,893.52,Revenue,National World Publishing Limited,20072
Chorley Borough Council,http://statistics.data.gov.uk/id/local-authority/30UE,Homelessness,1075,EARL - Communities,Grants - Tenant Participation,40142,Grants and Subscriptions,5031,0,14/02/2024,191193,500,Revenue,Nicholas J Roden,87102
Chorley Borough Council,http://statistics.data.gov.uk/id/local-authority/30UE,Service Management & Support,1009,CUST - Customer & Digital,Supplies-Grounds Maintenance,40025,"Equipment, Furniture & Materia",5023,"Quantity x 200 litres, Nomix Hilite 5 Litre packs @ 96.10 each, Carriage 46",14/02/2024,191246,3890,Revenue,Nomix Enviro Ltd,82223
Chorley Borough Council,http://statistics.data.gov.uk/id/local-authority/30UE,Service Management & Support,1009,CUST - Customer & Digital,Supplies-Grounds Maintenance,40025,"Equipment, Furniture & Materia",5023,"As per Brush Quote 23,666, , x14 71107/1-HD 500/850mm Blue 2.8mm Poly & 3.3mm Wire Universal Disk",14/02/2024,191086,761.89,Revenue,Northern Municipal Spares Ltd,17752
Chorley Borough Council,http://statistics.data.gov.uk/id/local-authority/30UE,Central Support Services,1009,EARL - Communities,Hire Of Vehicles and Plant,30028,Contrct Hire & Operating Lease,5018,"Pest control van hire - registration numbers VIN REDACTED and VIN REDACTED, , For queries please contact NAME REDACTED",14/02/2024,187554,641.76,Revenue,Northgate Vehicle Hire (NW) Ltd,17360
Chorley Borough Council,http://statistics.data.gov.uk/id/local-authority/30UE,Central Support Services,1009,EARL - Communities,Hire Of Vehicles and Plant,30028,Contrct Hire & Operating Lease,5018,"Pest control van hire - registration numbers VIN REDACTED and VIN REDACTED, , For queries please contact NAME REDACTED",07/02/2024,190882,641.76,Revenue,Northgate Vehicle Hire (NW) Ltd,17360
Chorley Borough Council,http://statistics.data.gov.uk/id/local-authority/30UE,Central Support Services,1009,EARL - Communities,Hire Of Vehicles and Plant,30028,Contrct Hire & Operating Lease,5018,"Pest control van hire - registration numbers VIN REDACTED and VIN REDACTED, , For queries please contact NAME REDACTED",14/02/2024,191017,641.76,Revenue,Northgate Vehicle Hire (NW) Ltd,17360
Chorley Borough Council,http://statistics.data.gov.uk/id/local-authority/30UE,Central Support Services,1009,CUST - Customer & Digital,Hire Of Vehicles and Plant,30028,Contrct Hire & Operating Lease,5018,Vehicle hire: 3.5t Luton Van with tail-lift (April 2023- March 2024) Current Reg: VIN REDACTED,28/02/2024,191493,766.08,Revenue,Northgate Vehicle Hire (NW) Ltd,17360
Chorley Borough Council,http://statistics.data.gov.uk/id/local-authority/30UE,Recreation & Sport,1037,GROW - Commercial Services,Electricity,20013,Energy Costs,5006,1 Nov 2023 to 30 Nov 2023,14/02/2024,191087,20956.52,Revenue,Npower Commercial Gas,16814
Chorley Borough Council,http://statistics.data.gov.uk/id/local-authority/30UE,Recreation & Sport,1037,GROW - Commercial Services,Electricity,20013,Energy Costs,5006,1 Jul 2023 to 31 Jul 2023,14/02/2024,191160,9511.46,Revenue,Npower Commercial Gas,16814
Chorley Borough Council,http://statistics.data.gov.uk/id/local-authority/30UE,Recreation & Sport,1037,GROW - Commercial Services,Electricity,20013,Energy Costs,5006,1 Aug 2023 to 31 Aug 2023,14/02/2024,191161,9933.46,Revenue,Npower Commercial Gas,16814
Chorley Borough Council,http://statistics.data.gov.uk/id/local-authority/30UE,Recreation & Sport,1037,GROW - Commercial Services,Electricity,20013,Energy Costs,5006,1 Jun 2023 to 30 Jun 2023,14/02/2024,191162,7976.56,Revenue,Npower Commercial Gas,16814
Chorley Borough Council,http://statistics.data.gov.uk/id/local-authority/30UE,Recreation & Sport,1037,GROW - Commercial Services,Electricity,20013,Energy Costs,5006,1 Sep 2023 to 30 Sep 2023,14/02/2024,191163,10615.97,Revenue,Npower Commercial Gas,16814
Chorley Borough Council,http://statistics.data.gov.uk/id/local-authority/30UE,Recreation & Sport,1037,GROW - Commercial Services,Electricity,20013,Energy Costs,5006,1 Oct 2023 to 31 Oct 2023,14/02/2024,191164,15368.16,Revenue,Npower Commercial Gas,16814
Chorley Borough Council,http://statistics.data.gov.uk/id/local-authority/30UE,Recreation & Sport,1037,GROW - Commercial Services,Electricity,20013,Energy Costs,5006,: 1 May 2023 to 31 May 2023,14/02/2024,191165,9767.66,Revenue,Npower Commercial Gas,16814
Chorley Borough Council,http://statistics.data.gov.uk/id/local-authority/30UE,Recreation & Sport,1037,GROW - Commercial Services,Electricity,20013,Energy Costs,5006,1 Apr 2023 to 30 Apr 2023,14/02/2024,191166,13289.42,Revenue,Npower Commercial Gas,16814
Chorley Borough Council,http://statistics.data.gov.uk/id/local-authority/30UE,Recreation & Sport,1037,GROW - Commercial Services,Electricity,20013,Energy Costs,5006,1 Dec 2023 to 31 Dec 2023,14/02/2024,191167,22374.49,Revenue,Npower Commercial Gas,16814
Chorley Borough Council,http://statistics.data.gov.uk/id/local-authority/30UE,Service Management Support,1009,GROW - Commercial Services,Electricity,20013,Energy Costs,5006,1 Jan 2024 to 31 Jan 2024,28/02/2024,191645,538.35,Revenue,Npower Commercial Gas,16814
Chorley Borough Council,http://statistics.data.gov.uk/id/local-authority/30UE,Open Spaces,1038,GROW - Commercial Services,Electricity,20013,Energy Costs,5006,1 Jan 2024 to 31 Jan 2024,28/02/2024,191647,2621.23,Revenue,Npower Commercial Gas,16814
Chorley Borough Council,http://statistics.data.gov.uk/id/local-authority/30UE,Open Spaces,1038,GROW - Commercial Services,Electricity,20013,Energy Costs,5006,1 Jan 2024 to 31 Jan 2024,28/02/2024,191648,1556.54,Revenue,Npower Commercial Gas,16814
Chorley Borough Council,http://statistics.data.gov.uk/id/local-authority/30UE,Homelessness,1075,GROW - Commercial Services,Electricity,20013,Energy Costs,5006,1 Jan 2024 to 31 Jan 2024,28/02/2024,191650,1735.63,Revenue,Npower Commercial Gas,16814
Chorley Borough Council,http://statistics.data.gov.uk/id/local-authority/30UE,Homelessness,1075,GROW - Commercial Services,Electricity,20013,Energy Costs,5006,1 Jan 2024 to 31 Jan 2024,28/02/2024,191651,939.19,Revenue,Npower Commercial Gas,16814
Chorley Borough Council,http://statistics.data.gov.uk/id/local-authority/30UE,Business Support,1095,GROW - Commercial Services,Electricity,20013,Energy Costs,5006,1 Jan 2024 to 31 Jan 2024,28/02/2024,191654,15256.59,Revenue,Npower Commercial Gas,16814
Chorley Borough Council,http://statistics.data.gov.uk/id/local-authority/30UE,Recreation & Sport,1037,GROW - Commercial Services,Electricity,20013,Energy Costs,5006,1 Jan 2024 to 31 Jan 2024,28/02/2024,191656,24933.67,Revenue,Npower Commercial Gas,16814
Chorley Borough Council,http://statistics.data.gov.uk/id/local-authority/30UE,Parking Services,1066,GROW - Commercial Services,External Contractors,50008,Private Contractors,5042,"Provision of off street car park enforcement for period 01.04.23 - 31.03.24, , Rate: 18.40 ph, , Monday - Saturday Parking Atten",21/02/2024,191079,4554,Revenue,NSL Limited,67253
Chorley Borough Council,http://statistics.data.gov.uk/id/local-authority/30UE,Central Support Services,1009,GROW - Commercial Services,General Repairs - Reactive,20004,Repairs Maintenance & Alts,5005,Service yard oil tank redecoration at Bengal Street,07/02/2024,190171,5488,Revenue,Optimum commercial interiors,87262
Chorley Borough Council,http://statistics.data.gov.uk/id/local-authority/30UE,Capital,Capital,GROW - Commercial Services,Other Capital Related Fees,3024,Capital Expenditure,Capital,Redecoration at ADDRESS REDACTED,07/02/2024,190584,2988.46,Capital,Optimum commercial interiors,87262
Chorley Borough Council,http://statistics.data.gov.uk/id/local-authority/30UE,Central Support Services,1009,GROW - Commercial Services,General Repairs - Reactive,20004,Repairs Maintenance & Alts,5005,"Ceiling remedials in the Lancastrian Suite, Town Hall.",21/02/2024,190836,90616,Revenue,Optimum commercial interiors,87262
Chorley Borough Council,http://statistics.data.gov.uk/id/local-authority/30UE,Business Support,1095,GROW - Commercial Services,Electricity,20013,Energy Costs,5006,25 December 2023 to 23 January 2024,14/02/2024,191090,530.93,Revenue,Opus Energy Ltd,65093
Chorley Borough Council,http://statistics.data.gov.uk/id/local-authority/30UE,Parking Services,1066,GROW - Commercial Services,Printing,40043,"Printing, Stationery & General",5026,"As per quotation: 240471, , Please supply 90k ~Stelio Adhesive Check Out Chorley tickets - 8.66 per 1000. , , Please deliver to:",07/02/2024,190548,779.4,Revenue,Paperwork (UK) Limited,18296
Chorley Borough Council,http://statistics.data.gov.uk/id/local-authority/30UE,Economic Development,1096,GROW - Commercial Services,Cleaning Materials,40019,"Equipment, Furniture & Materia",5023,Cleaning order for Market,07/02/2024,190478,1035.04,Revenue,Pattersons Holdings (Bristol),77537
Chorley Borough Council,http://statistics.data.gov.uk/id/local-authority/30UE,Homelessness,1075,GROW - Commercial Services,Cleaning Materials,40019,"Equipment, Furniture & Materia",5023,January 2024 Cotswold cleaning order,07/02/2024,190706,646.46,Revenue,Pattersons Holdings (Bristol),77537
Chorley Borough Council,http://statistics.data.gov.uk/id/local-authority/30UE,Central Support Services,1009,CUST - Customer & Digital,Consultants` Fees,40077,Services,5027,"Professional Services as per Scope, 1, 7,000.00, Engagement Management, 1, 500, TOTAL 7,500.00",07/02/2024,187911,7500,Revenue,Phoenix Software Ltd,17046
Chorley Borough Council,http://statistics.data.gov.uk/id/local-authority/30UE,Central Support Services,1009,CUST - Customer & Digital,Computer Equipment-Purchase,40098,Communication and Computing,5028,"Platforms - Subscription New Licence, 01429728 65297754BC02C12 705.02 4,935.14, Photoshop for Teams Subscription New Licence - ",07/02/2024,190755,4399.32,Revenue,Phoenix Software Ltd,17046
Chorley Borough Council,http://statistics.data.gov.uk/id/local-authority/30UE,Central Support Services,1009,CUST - Customer & Digital,Consultants` Fees,40077,Services,5027,"Contract work to assist with, Contractor: NAME REDACTED Time period: 1 April 2023  31 March 2024",07/02/2024,190884,1290,Revenue,Planning and PACE Solutions Ltd,82083
Chorley Borough Council,http://statistics.data.gov.uk/id/local-authority/30UE,Central Support Services,1009,CUST - Customer & Digital,Consultants` Fees,40077,Services,5027,"Contract work to assist with, Contractor: NAME REDACTED Time period: 1 April 2023  31 March 2024",28/02/2024,191491,1935,Revenue,Planning and PACE Solutions Ltd,82083
Chorley Borough Council,http://statistics.data.gov.uk/id/local-authority/30UE,Collection Fund Revenue Accoun,0,GOVN - Policy & Governance,LPA Precept,2010,Precepts & Collection Fund,Precept,PCC CT Precept,29/02/2024,191453,964123,Revenue,Police & Crime Commissioner,17438
Chorley Borough Council,http://statistics.data.gov.uk/id/local-authority/30UE,Business Support,1095,GROW - Commercial Services,Building Services,20030,Fixtures and Fittings,5010,"Per your quotation PM19816/2. Frosted Privacy to Glass Offices , Remove existing DDA frosted dots., Frosted vinyl @ 1220mm deep h",07/02/2024,190712,903.52,Revenue,Poppy Signs Ltd,21898
Chorley Borough Council,http://statistics.data.gov.uk/id/local-authority/30UE,Business Support,1095,GROW - Commercial Services,Building Services,20030,Fixtures and Fittings,5010,GO-D,07/02/2024,190712,899.41,Revenue,Poppy Signs Ltd,21898
Chorley Borough Council,http://statistics.data.gov.uk/id/local-authority/30UE,Development Control,1091,PLAN - Planning & Development,Agency Staff,13000,Direct Employee Expenses,5001,"Contract work to assist with planning application processing- NAME REDACTED, 01/01/2024-31/03/2024",07/02/2024,190666,1665,Revenue,Power Planning Consulting Ltd,89435
Chorley Borough Council,http://statistics.data.gov.uk/id/local-authority/30UE,Development Control,1091,PLAN - Planning & Development,Agency Staff,13000,Direct Employee Expenses,5001,"Contract work to assist with planning application processing- NAME REDACTED, 01/01/2024-31/03/2024",07/02/2024,190700,1665,Revenue,Power Planning Consulting Ltd,89435
Chorley Borough Council,http://statistics.data.gov.uk/id/local-authority/30UE,Development Control,1091,PLAN - Planning & Development,Agency Staff,13000,Direct Employee Expenses,5001,"Contract work to assist with planning application processing- NAME REDACTED, 01/01/2024-31/03/2024",28/02/2024,191113,1665,Revenue,Power Planning Consulting Ltd,89435
Chorley Borough Council,http://statistics.data.gov.uk/id/local-authority/30UE,Other Short Term Creditors,0,GOVN - Policy & Governance,General Balances,100,Balance Sheet,Balance,Prudential - Jan 24 Monthly Deductions from payroll,14/02/2024,190996,1700,Revenue,PRUDENTIAL,18178
Chorley Borough Council,http://statistics.data.gov.uk/id/local-authority/30UE,Other Short Term Creditors,0,GOVN - Policy & Governance,General Balances,100,Balance Sheet,Balance,Prudential AVC Wise - Jan 24 Monthly Deductions from payroll,14/02/2024,190997,12447.38,Revenue,PRUDENTIAL,18178
Chorley Borough Council,http://statistics.data.gov.uk/id/local-authority/30UE,Interest Payable on Debt,1020,GOVN - Policy & Governance,Interest Payable,9009,Interest Payments,5067,interest  509641,29/02/2024,191452,278279.47,Revenue,Public Works Loans Board,21480
Chorley Borough Council,http://statistics.data.gov.uk/id/local-authority/30UE,Homelessness,1075,EARL - Communities,Bed and Breakfast Accommodation,40232,Miscellaneous Expenses,5034,"Jan 2024 , 16/1 - 19/1,  22/1 - 5/2, 26/1 - 1/2",14/02/2024,191102,1333.67,Revenue,Purple Roomz,84223
Chorley Borough Council,http://statistics.data.gov.uk/id/local-authority/30UE,Economic Development,1096,GROW - Commercial Services,Christmas Lights,40179,Miscellaneous Expenses,5034,"Chorley Christmas Display 2023/24, , Market 1498 Area, Re installation of xmas specific aspects of indoor market 1498 area (desig",07/02/2024,190677,800,Revenue,R A Ryan,82222
Chorley Borough Council,http://statistics.data.gov.uk/id/local-authority/30UE,Business Support,1095,GROW - Commercial Services,Christmas Lights,40179,Miscellaneous Expenses,5034,"Christmas Display 2023/24, , Market Walk Gobo Projectors, Repair costs for 1 large external projector 245, Re-Installation and f",07/02/2024,190719,525,Revenue,R A Ryan,82222
Chorley Borough Council,http://statistics.data.gov.uk/id/local-authority/30UE,Central Support Services,1009,GROW - Commercial Services,Planned Maintenance,20006,Repairs Maintenance & Alts,5005,"Asbestos Survey at Commercial Sites, Dole Lane 225, 100 Market St 225, 102B Market St 225, 110A Market St 225, 112A Market St",07/02/2024,190722,1245,Revenue,R.B. Asbestos Consultants Ltd,54189
Chorley Borough Council,http://statistics.data.gov.uk/id/local-authority/30UE,Homelessness,1075,EARL - Communities,Other Contributions,40145,Grants and Subscriptions,5031,Boiler replacement - ADDRESS REDACTED,07/02/2024,190525,1995,Revenue,Rhea Projects Ltd,77753
Chorley Borough Council,http://statistics.data.gov.uk/id/local-authority/30UE,Homelessness,1075,EARL - Communities,Grants - Tenant Participation,40142,Grants and Subscriptions,5031,0,14/02/2024,191182,500,Revenue,Richard Palin,85421
Chorley Borough Council,http://statistics.data.gov.uk/id/local-authority/30UE,Central Support Services,1009,CUST - Customer & Digital,Other Fees,40212,Miscellaneous Expenses,5034,Gillibrand Street CHORLEY,21/02/2024,191261,1000,Revenue,Ricoh UK Ltd,17126
Chorley Borough Council,http://statistics.data.gov.uk/id/local-authority/30UE,Business Support,1095,GROW - Commercial Services,Professional Fees,40063,Services,5027,Month 3,07/02/2024,190694,875,Revenue,Rightmove Group Ltd,77717
Chorley Borough Council,http://statistics.data.gov.uk/id/local-authority/30UE,Business Support,1095,GROW - Commercial Services,Professional Fees,40063,Services,5027,Month 4,28/02/2024,191566,875,Revenue,Rightmove Group Ltd,77717
Chorley Borough Council,http://statistics.data.gov.uk/id/local-authority/30UE,Homelessness,1075,EARL - Communities,Grants - Tenant Participation,40142,Grants and Subscriptions,5031,0,14/02/2024,191194,500,Revenue,Robert Hopes,87235
Chorley Borough Council,http://statistics.data.gov.uk/id/local-authority/30UE,Business Support,1095,GROW - Commercial Services,Professional Fees,40063,Services,5027,"Negotiate 5-year Lease with effect from 14th September 2023 at Units 1 & 2 Market Walk, Chorley.",07/02/2024,190519,3780,Revenue,Robert Pinkus & Co,19273
Chorley Borough Council,http://statistics.data.gov.uk/id/local-authority/30UE,Capital,Capital,GROW - Commercial Services,Main Contractor,3007,Capital Expenditure,Capital,"Delivery of Tatton Gardens Development, , Closure of remaining December 2022 order, with remaining balance transferred to new ord",28/02/2024,191514,603772.98,Capital,Robertson CE Limited,81176
Chorley Borough Council,http://statistics.data.gov.uk/id/local-authority/30UE,Capital,Capital,PLAN - Planning & Development,Main Contractor,3007,Capital Expenditure,Capital,"�	100 of RSPB Classic easy-clean suet feeder (RSPB Classic easy-clean suet feeder - Suet bird feeders; , �	300 of Mealworm super ",21/02/2024,190809,3578,Capital,RSPB Sales Limited,89690
Chorley Borough Council,http://statistics.data.gov.uk/id/local-authority/30UE,Economic Development,1096,GROW - Commercial Services,Fixtures & Fittings - Repair/Mtnce,20028,Fixtures and Fittings,5010,"Re removal of the town centre blocks & planters , , To carry out works on Sunday 14th January 2024 (time tbc)",07/02/2024,190671,1500,Revenue,Ruttle Plant Hire Limited,90033
Chorley Borough Council,http://statistics.data.gov.uk/id/local-authority/30UE,Business Support,1095,GROW - Commercial Services,General Repairs - Reactive,20004,Repairs Maintenance & Alts,5005,Supply and install replacement gate unit due to damage,28/02/2024,191395,880,Revenue,Secure Door Systems,87323
Chorley Borough Council,http://statistics.data.gov.uk/id/local-authority/30UE,Planning Policy,1092,GROW - Commercial Services,Misc Expenses,40200,Miscellaneous Expenses,5034,"To provide evening Site Security Services at Chorley Bus Station and assistance at Market Walk, (As agreed with NAME REDACTED a minim",07/02/2024,190550,1130.46,Revenue,Secure FM Ltd,86928
Chorley Borough Council,http://statistics.data.gov.uk/id/local-authority/30UE,Planning Policy,1092,GROW - Commercial Services,Misc Expenses,40200,Miscellaneous Expenses,5034,"To provide evening Site Security Services at Chorley Bus Station and assistance at Market Walk, (As agreed with NAME REDACTED a minim",07/02/2024,190551,1045.34,Revenue,Secure FM Ltd,86928
Chorley Borough Council,http://statistics.data.gov.uk/id/local-authority/30UE,Business Support,1095,GROW - Commercial Services,Security Service,40062,Services,5027,To provide concierge services at Primrose Gardens Extra Care Facility as outlined by NAME REDACTED 7 days a week. Hourly rate ,07/02/2024,190804,7885.98,Revenue,Secure FM Ltd,86928
Chorley Borough Council,http://statistics.data.gov.uk/id/local-authority/30UE,Business Support,1095,GROW - Commercial Services,Security Service,40062,Services,5027,"To provide evening Site Security Services at Market Walk Shopping Centre from 5pm until midnight, 7 , days a week. , , Hourly rat",07/02/2024,190822,2955.54,Revenue,Secure FM Ltd,86928
Chorley Borough Council,http://statistics.data.gov.uk/id/local-authority/30UE,Homelessness,1075,GROW - Commercial Services,Security Service,40062,Services,5027,"To provide site concierge services at Cotswold House temporary accommodation facility, hours as outlined , by the NAME REDACTED",28/02/2024,191410,7885.98,Revenue,Secure FM Ltd,86928
Chorley Borough Council,http://statistics.data.gov.uk/id/local-authority/30UE,Central Support Services,1009,GOVN - Policy & Governance,UKSPF Funded Business Events,40258,Miscellaneous Expenses,5034,Lancashire Business Expo - Stand,28/02/2024,191568,595,Revenue,Shout Connect,69551
Chorley Borough Council,http://statistics.data.gov.uk/id/local-authority/30UE,Capital,Capital,GROW - Commercial Services,Main Contractor,3007,Capital Expenditure,Capital,"All Seasons Leisure Centre, ASLC, Ground Floor Alteration Works as per instruction from NAME REDACTED",07/02/2024,189557,12640.44,Capital,Singleton and Smart,85371
Chorley Borough Council,http://statistics.data.gov.uk/id/local-authority/30UE,Capital,Capital,GROW - Commercial Services,Main Contractor,3007,Capital Expenditure,Capital,"All Seasons Leisure Centre, ASLC Spin Studio Alterations Works, As Per instructions from NAME REDACTED",07/02/2024,189660,11477.64,Capital,Singleton and Smart,85371
Chorley Borough Council,http://statistics.data.gov.uk/id/local-authority/30UE,Central Support Services,1009,GROW - Commercial Services,General Repairs - Reactive,20004,Repairs Maintenance & Alts,5005,"BMS Servicing at Civic Offices, Union Street.",14/02/2024,190760,600,Revenue,Smart Control Systems Ltd,81175
Chorley Borough Council,http://statistics.data.gov.uk/id/local-authority/30UE,Business Support,1095,GROW - Commercial Services,Planned Maintenance,20006,Repairs Maintenance & Alts,5005,"BMS Servicing at Strawberry Fields, Digital Office Park .",14/02/2024,190766,1200,Revenue,Smart Control Systems Ltd,81175
Chorley Borough Council,http://statistics.data.gov.uk/id/local-authority/30UE,Central Support Services,1009,GOVN - Policy & Governance,Service Fees to other Local Authorities,40076,Services,5027,Quarter 3 Recharges 2023/24,14/02/2024,191042,829305.67,Revenue,South Ribble Borough Council,17889
Chorley Borough Council,http://statistics.data.gov.uk/id/local-authority/30UE,Service Management & Support,1009,CUST - Customer & Digital,Diesel/Derv,30007,Direct Transport Costs,5016,"7000 litres road diesel @ 120.87, 2000 litres gas oil @ 80.10",28/02/2024,191431,1619.62,Revenue,Standard Fuel Oils,85167
Chorley Borough Council,http://statistics.data.gov.uk/id/local-authority/30UE,Service Management & Support,1009,CUST - Customer & Digital,Diesel/Derv,30007,Direct Transport Costs,5016,"7000 litres road diesel @ 120.87, 2000 litres gas oil @ 80.10",28/02/2024,191457,8448.81,Revenue,Standard Fuel Oils,85167
Chorley Borough Council,http://statistics.data.gov.uk/id/local-authority/30UE,Capital,Capital,EARL - Communities,Grants,3002,Capital Expenditure,Capital,ADDRESS REDACTED,07/02/2024,190658,3395,Capital,Stannah Lift Services Ltd,80943
Chorley Borough Council,http://statistics.data.gov.uk/id/local-authority/30UE,Capital,Capital,EARL - Communities,Grants,3002,Capital Expenditure,Capital,ADDRESS REDACTED,07/02/2024,190663,3144,Capital,Stannah Lift Services Ltd,80943
Chorley Borough Council,http://statistics.data.gov.uk/id/local-authority/30UE,Capital,Capital,EARL - Communities,Grants,3002,Capital Expenditure,Capital,23/00132/DFG,14/02/2024,190986,2543,Capital,Stannah Lift Services Ltd,80943
Chorley Borough Council,http://statistics.data.gov.uk/id/local-authority/30UE,Capital,Capital,EARL - Communities,Grants,3002,Capital Expenditure,Capital,22/00162/DFG,14/02/2024,190988,15482.86,Capital,Stannah Lift Services Ltd,80943
Chorley Borough Council,http://statistics.data.gov.uk/id/local-authority/30UE,Capital,Capital,EARL - Communities,Grants,3002,Capital Expenditure,Capital,ADDRESS REDACTED,21/02/2024,191145,3435,Capital,Stannah Lift Services Ltd,80943
Chorley Borough Council,http://statistics.data.gov.uk/id/local-authority/30UE,Capital,Capital,EARL - Communities,Grants,3002,Capital Expenditure,Capital,23/00105/DFG ADDRESS REDACTED,28/02/2024,191663,5167,Capital,Stannah Lift Services Ltd,80943
Chorley Borough Council,http://statistics.data.gov.uk/id/local-authority/30UE,Homelessness,1075,EARL - Communities,Grants - Tenant Participation,40142,Grants and Subscriptions,5031,0,14/02/2024,191192,500,Revenue,Stephen Daniels,86923
Chorley Borough Council,http://statistics.data.gov.uk/id/local-authority/30UE,Corporate Management,1008,GOVN - Policy & Governance,Corp Training Organisational Development,17006,Indirect Employee Expenses,5002,Leadership & Management Values Training,14/02/2024,190900,1178.43,Revenue,Sticky Change,89630
Chorley Borough Council,http://statistics.data.gov.uk/id/local-authority/30UE,Capital,Capital,GROW - Commercial Services,Other Contractor,3012,Capital Expenditure,Capital,Capital works for Queens Road Car Park,14/02/2024,190856,4761,Capital,Street Civil Engineering Limited,76750
Chorley Borough Council,http://statistics.data.gov.uk/id/local-authority/30UE,Capital,Capital,EARL - Communities,Grants,3002,Capital Expenditure,Capital,23/00044/DFG,14/02/2024,190987,10515,Capital,Stringfellow Bldg Cntrctrs Ltd,17893
Chorley Borough Council,http://statistics.data.gov.uk/id/local-authority/30UE,Capital,Capital,EARL - Communities,Grants,3002,Capital Expenditure,Capital,23/00111/CAG,29/02/2024,191427,7950,Capital,Stringfellow Bldg Cntrctrs Ltd,17893
Chorley Borough Council,http://statistics.data.gov.uk/id/local-authority/30UE,Capital,Capital,EARL - Communities,Grants,3002,Capital Expenditure,Capital,ADDRESS REDACTED,28/02/2024,191658,1550,Capital,Stringfellow Bldg Cntrctrs Ltd,17893
Chorley Borough Council,http://statistics.data.gov.uk/id/local-authority/30UE,Capital,Capital,EARL - Communities,Grants,3002,Capital Expenditure,Capital,"23/00044/DFG NAME REDACTED, ADDRESS REDACTED",28/02/2024,191659,6685,Capital,Stringfellow Bldg Cntrctrs Ltd,17893
Chorley Borough Council,http://statistics.data.gov.uk/id/local-authority/30UE,Private Sector HSG Renewal,1073,EARL - Communities,External Contractor,40198,Miscellaneous Expenses,5034,Minor Adaptation,28/02/2024,191662,900,Revenue,Stringfellow Bldg Cntrctrs Ltd,17893
Chorley Borough Council,http://statistics.data.gov.uk/id/local-authority/30UE,Capital,Capital,EARL - Communities,Grants,3002,Capital Expenditure,Capital,23/00215/CAG ADDRESS REDACTED,28/02/2024,191666,7080,Capital,Stringfellow Bldg Cntrctrs Ltd,17893
Chorley Borough Council,http://statistics.data.gov.uk/id/local-authority/30UE,Homelessness,1075,EARL - Communities,Grants - Tenant Participation,40142,Grants and Subscriptions,5031,0,14/02/2024,191183,500,Revenue,Susan McGuigan,85422
Chorley Borough Council,http://statistics.data.gov.uk/id/local-authority/30UE,Homelessness,1075,EARL - Communities,Grants - Tenant Participation,40142,Grants and Subscriptions,5031,0,14/02/2024,191185,500,Revenue,Tawny Burns,87007
Chorley Borough Council,http://statistics.data.gov.uk/id/local-authority/30UE,Central Support Services,1009,CUST - Customer & Digital,CCTV Camera Maintenance,40007,"Equipment, Furniture & Materia",5023,"Description, Camera 3 Booths has gone off, looks like water has been leaking in., Camera is back on but Client would like the cam",07/02/2024,189311,1857.49,Revenue,Technology Solutions,72376
Chorley Borough Council,http://statistics.data.gov.uk/id/local-authority/30UE,Business Support,1095,GROW - Commercial Services,Legal Fees,40171,Miscellaneous Expenses,5034,SFDOP- Provision of SIA Security Officers January 2024,14/02/2024,191009,8151.22,Revenue,The ExcluSec Group Ltd,78056
Chorley Borough Council,http://statistics.data.gov.uk/id/local-authority/30UE,Central Support Services,1009,CUST - Customer & Digital,Consultants` Fees,40077,Services,5027,"Professional Service Day 1, Fast Track Training, , These could be in 2x half day sessions, either on the same day or on different",07/02/2024,189741,725,Revenue,The Networking People (NorthWest) Ltd T/a TNP Ltd,73446
Chorley Borough Council,http://statistics.data.gov.uk/id/local-authority/30UE,Central Support Services,1009,CUST - Customer & Digital,Computer Equipment-Purchase,40098,Communication and Computing,5028,"C1000-24P-4G-L - Catalyst 1000 24port GE, POE, 4x1G SFP",07/02/2024,190397,639.2,Revenue,The Networking People (NorthWest) Ltd T/a TNP Ltd,73446
Chorley Borough Council,http://statistics.data.gov.uk/id/local-authority/30UE,Planning Policy,1092,CUST - Customer & Digital,Misc Expenses,40200,Miscellaneous Expenses,5034,"Bus Station wireless P2P - survey, works, parts",14/02/2024,190806,4903.39,Revenue,The Networking People (NorthWest) Ltd T/a TNP Ltd,73446
Chorley Borough Council,http://statistics.data.gov.uk/id/local-authority/30UE,Central Support Services,1009,CUST - Customer & Digital,External Contractor,40198,Miscellaneous Expenses,5034,"Tatton Gardens 1GB R02, Route 1, Route 2 , CH Satellite site, Fortinet Equipment, as per quote SQ110036",21/02/2024,191297,1417.9,Revenue,The Networking People (NorthWest) Ltd T/a TNP Ltd,73446
Chorley Borough Council,http://statistics.data.gov.uk/id/local-authority/30UE,Service Management & Support,1009,CUST - Customer & Digital,Grounds Maintenance Contractor,20043,Grounds Maintenance Costs,5013,Invoice 0232,14/02/2024,191053,1300,Revenue,Treexpert Tree Care,78580
Chorley Borough Council,http://statistics.data.gov.uk/id/local-authority/30UE,Service Management & Support,1009,CUST - Customer & Digital,Grounds Maintenance Contractor,20043,Grounds Maintenance Costs,5013,Invoice 0241,14/02/2024,191055,520,Revenue,Treexpert Tree Care,78580
Chorley Borough Council,http://statistics.data.gov.uk/id/local-authority/30UE,Service Management & Support,1009,CUST - Customer & Digital,Grounds Maintenance Contractor,20043,Grounds Maintenance Costs,5013,Invoice 0231,14/02/2024,191060,960,Revenue,Treexpert Tree Care,78580
Chorley Borough Council,http://statistics.data.gov.uk/id/local-authority/30UE,Capital,Capital,CUST - Customer & Digital,Main Contractor,3007,Capital Expenditure,Capital,"For year 1 and 2 of the 5 year contract for Supply and Installation of 83 Bus Shelters, including The Dismantling and Disposal of",07/02/2024,190717,74073.9,Capital,Trueform Engineering Ltd,89660
Chorley Borough Council,http://statistics.data.gov.uk/id/local-authority/30UE,Service Management & Support,1009,CUST - Customer & Digital,Supplies-Grounds Maintenance,40025,"Equipment, Furniture & Materia",5023,"As per Quote No 47306, P1/P2 Fuel hose replacement",28/02/2024,191587,621.98,Revenue,TSG UK Solutions Ltd,81173
Chorley Borough Council,http://statistics.data.gov.uk/id/local-authority/30UE,Service Management & Support,1009,CUST - Customer & Digital,Tools & Equipment - Maintenance,40005,"Equipment, Furniture & Materia",5023,"Contract ID- 156625, , 2023-2024 annual renewal , Product Summary Qty Total Cost, ABOVE GROUND TANK COMPLIANCE CHECK , FUEL SAMPL",28/02/2024,191588,3441.81,Revenue,TSG UK Solutions Ltd,81173
Chorley Borough Council,http://statistics.data.gov.uk/id/local-authority/30UE,Other Short Term Debtors,0,GOVN - Policy & Governance,Other Debtors,98,Balance Sheet,Balance,Tusker Lease Car Scheme for staff,07/02/2024,190841,3895.85,Revenue,Tuskerdirect Ltd,86967
Chorley Borough Council,http://statistics.data.gov.uk/id/local-authority/30UE,Central Support Services,1009,GOVN - Policy & Governance,Misc Expenses,40200,Miscellaneous Expenses,5034,,14/02/2024,189949,1527.2,Revenue,UK Healthcare (BDHSC),17241
Chorley Borough Council,http://statistics.data.gov.uk/id/local-authority/30UE,Control Accounts,Control,GOVN - Policy & Governance,General Balances,100,Balance Sheet,Balance,Unify - Jan 24 Monthly Deductions from payroll,14/02/2024,190991,984,Revenue,Unify Credit Union Ltd,55509
Chorley Borough Council,http://statistics.data.gov.uk/id/local-authority/30UE,Homelessness,1075,EARL - Communities,Grants - Tenant Participation,40142,Grants and Subscriptions,5031,0,14/02/2024,191203,500,Revenue,Victoria Travis,89685
Chorley Borough Council,http://statistics.data.gov.uk/id/local-authority/30UE,Development Control,1091,PLAN - Planning & Development,Agency Staff,13000,Direct Employee Expenses,5001,"Contract work to assist with, Contractor: NAME REDACTED, Time period: 1 April 2023  31 December 2",07/02/2024,190388,1898,Revenue,Vivid Resourcing Ltd,76938
Chorley Borough Council,http://statistics.data.gov.uk/id/local-authority/30UE,Development Control,1091,PLAN - Planning & Development,Agency Staff,13000,Direct Employee Expenses,5001,"Contract work to assist with, Contractor: NAME REDACTED, Time period: 1 April 2023  31 December 2",07/02/2024,190520,1898,Revenue,Vivid Resourcing Ltd,76938
Chorley Borough Council,http://statistics.data.gov.uk/id/local-authority/30UE,Development Control,1091,PLAN - Planning & Development,Agency Staff,13000,Direct Employee Expenses,5001,"Contract work to assist with, Contractor: NAME REDACTED, Time period: 1 April 2023  31 December 2",07/02/2024,190790,1898,Revenue,Vivid Resourcing Ltd,76938
Chorley Borough Council,http://statistics.data.gov.uk/id/local-authority/30UE,Central Support Services,1009,GROW - Commercial Services,Agency Staff,13000,Direct Employee Expenses,5001,Estates surveyor fees for NAME REDACTED as agreed with NAME REDACTED,21/02/2024,190801,2035,Revenue,Vivid Resourcing Ltd,76938
Chorley Borough Council,http://statistics.data.gov.uk/id/local-authority/30UE,Central Support Services,1009,CUST - Customer & Digital,Computer Equipment - Security,40106,Communication and Computing,5028,01-Jan-24,28/02/2024,191578,980.86,Revenue,Vodafone Ltd,60180
Chorley Borough Council,http://statistics.data.gov.uk/id/local-authority/30UE,Central Support Services,1009,GROW - Commercial Services,Planned Maintenance,20006,Repairs Maintenance & Alts,5005,Planned Electrical Maintenance and Remedial Works @ Community Centre`s,07/02/2024,190111,2567.84,Revenue,Walker Gabbott Electrical Ltd,83932
Chorley Borough Council,http://statistics.data.gov.uk/id/local-authority/30UE,Central Support Services,1009,GROW - Commercial Services,General Repairs - Reactive,20004,Repairs Maintenance & Alts,5005,Reactive Electrical Repair Works @ Town Hall,07/02/2024,190463,2450,Revenue,Walker Gabbott Electrical Ltd,83932
Chorley Borough Council,http://statistics.data.gov.uk/id/local-authority/30UE,Central Support Services,1009,GROW - Commercial Services,General Repairs - Reactive,20004,Repairs Maintenance & Alts,5005,Remove MCCB panel board and install O-pen protection device at Flat Iron Car Park,07/02/2024,190483,1417.67,Revenue,Walker Gabbott Electrical Ltd,83932
Chorley Borough Council,http://statistics.data.gov.uk/id/local-authority/30UE,Central Support Services,1009,GROW - Commercial Services,General Repairs - Reactive,20004,Repairs Maintenance & Alts,5005,Reactive Electrical Repair Works @ CBC Parks,21/02/2024,190763,1220,Revenue,Walker Gabbott Electrical Ltd,83932
Chorley Borough Council,http://statistics.data.gov.uk/id/local-authority/30UE,Recreation & Sport,1037,GROW - Commercial Services,Burglar Alarms & Security Systems,20075,Fixtures and Fittings,5010,"CCTV at Lancaster Way Community Centre, Total Cost = 1385.41+VAT",07/02/2024,190784,1385.41,Revenue,Walker Gabbott Electrical Ltd,83932
Chorley Borough Council,http://statistics.data.gov.uk/id/local-authority/30UE,Central Support Services,1009,GROW - Commercial Services,General Repairs - Reactive,20004,Repairs Maintenance & Alts,5005,Rewiring at ADDRESS REDACTED,14/02/2024,190855,1891.37,Revenue,Walker Gabbott Electrical Ltd,83932
Chorley Borough Council,http://statistics.data.gov.uk/id/local-authority/30UE,Central Support Services,1009,GROW - Commercial Services,Planned Maintenance,20006,Repairs Maintenance & Alts,5005,Planned Electrical Maintenance and Remedial Works @ Community Centre`s,14/02/2024,190886,727.38,Revenue,Walker Gabbott Electrical Ltd,83932
Chorley Borough Council,http://statistics.data.gov.uk/id/local-authority/30UE,Central Support Services,1009,GROW - Commercial Services,General Repairs - Reactive,20004,Repairs Maintenance & Alts,5005,Rewiring at ADDRESS REDACTED,14/02/2024,190919,5874.21,Revenue,Walker Gabbott Electrical Ltd,83932
Chorley Borough Council,http://statistics.data.gov.uk/id/local-authority/30UE,Capital,Capital,GROW - Commercial Services,Other Capital Related Fees,3024,Capital Expenditure,Capital,Electrical Rewire Works - ADDRESS REDACTED,14/02/2024,190921,8150,Capital,Walker Gabbott Electrical Ltd,83932
Chorley Borough Council,http://statistics.data.gov.uk/id/local-authority/30UE,Central Support Services,1009,GROW - Commercial Services,General Repairs - Reactive,20004,Repairs Maintenance & Alts,5005,Reactive Electrical Repair Works @ Chorley Bus Station,21/02/2024,191048,587,Revenue,Walker Gabbott Electrical Ltd,83932
Chorley Borough Council,http://statistics.data.gov.uk/id/local-authority/30UE,Control Accounts,Control,GOVN - Policy & Governance,Manual Control Account,1,Balance Sheet,Balance,refund,07/02/2024,CRREF00100,8891.89,Revenue,Water-plus,17926
Chorley Borough Council,http://statistics.data.gov.uk/id/local-authority/30UE,Control Accounts,Control,GOVN - Policy & Governance,Manual Control Account,1,Balance Sheet,Balance,REFUND,07/02/2024,CRREF00101,3062.93,Revenue,Water-plus,17926
Chorley Borough Council,http://statistics.data.gov.uk/id/local-authority/30UE,Central Support Services,1009,GROW - Commercial Services,Water - Metered Supplies,20022,Water Services,5009,02 January 2024 - 01 February 2024,14/02/2024,191232,618.24,Revenue,WaterPlus 4083538012 Destructor Stump Lane Chorley,85458
Chorley Borough Council,http://statistics.data.gov.uk/id/local-authority/30UE,Homelessness,1075,GROW - Commercial Services,Water - Metered Supplies,20022,Water Services,5009,01 January 2024 - 31 January 2024,14/02/2024,191221,720.66,Revenue,WaterPlus 4160565113 Cotswold House,85562
Chorley Borough Council,http://statistics.data.gov.uk/id/local-authority/30UE,Business Support,1095,GROW - Commercial Services,Water - Metered Supplies,20022,Water Services,5009,"600 225 9172, 14 Sep 23 - 13 Oct 23",07/02/2024,187460,1026.97,Revenue,WaterPlus 6002259172 The Strawberry Fields,86926
Chorley Borough Council,http://statistics.data.gov.uk/id/local-authority/30UE,Business Support,1095,GROW - Commercial Services,Water - Metered Supplies,20022,Water Services,5009,"600 225 9172, 14 Oct 23 - 31 Oct 23",07/02/2024,187996,617.51,Revenue,WaterPlus 6002259172 The Strawberry Fields,86926
Chorley Borough Council,http://statistics.data.gov.uk/id/local-authority/30UE,Business Support,1095,GROW - Commercial Services,Water - Metered Supplies,20022,Water Services,5009,01 November 2023 - 30 November 2023,07/02/2024,189494,1026.97,Revenue,WaterPlus 6002259172 The Strawberry Fields,86926
Chorley Borough Council,http://statistics.data.gov.uk/id/local-authority/30UE,Business Support,1095,GROW - Commercial Services,Water - Metered Supplies,20022,Water Services,5009,01 December 2023 - 31 December 2023,07/02/2024,190243,1160.01,Revenue,WaterPlus 6002259172 The Strawberry Fields,86926
